Cogmind - Beta 15 @@@ ROGUE MODE // 2025.09.30 @ 05:08:47 Player: shapeshifter Result: Destroyed by Striker with Plasma Lance Performance ------------- Evolutions (9) 4500 Regions Visited (36) 7200 Robots Destroyed (396) 1980 Value Destroyed (19201) 19201 Prototype IDs (73) 1460 Alien Tech Used (0) 0 Bonus (13571) 13571 TOTAL SCORE: 47912 Bonus ------- High Alert Combat Kills 4040 Follower Combat Kills 1704 Entered Garrisons 800 Entered DSFs 500 Aligned with FarCom 300 Met Data Miner 300 Acquired ECA 300 Met Warlord at Base 500 MAIN.C Attacked Warlord 500 Warlord Defense Kills 1130 Met Warlord at Research 2000 Invited to Help at Command 2000 Friendly Fire -503 Cogmind --------- Core Integrity 0/1600 Matter 259/300 Energy 99/100 System Corruption 9% Temperature Cool (0) Movement Core (50) Location -1/Command Parts ------- > --- POWER (2) -------- (None) > --- PROPULSION (6) --- (None) > --- UTILITY (13) ----- (None) > --- WEAPON (4) ------- (None) > --- INVENTORY (5) ---- Cooled Impulse Thruster Impulse Thruster Array Peak State ------------ > --- POWER ------------ Vortex Chain Reactor > --- PROPULSION ------- Experimental Biometal Heavy Treads Experimental Biometal Heavy Treads Experimental Biometal Heavy Treads > --- UTILITY ---------- Advanced Heat Sink Advanced Heat Sink Advanced Cooling System Advanced Coolant Injector Huge Storage Unit Centrium Light Armor Plating Centrium Light Armor Plating Centrium Light Armor Plating Advanced Force Field Advanced System Shield > --- WEAPON ----------- Enhanced Nova Cannon Enhanced Nova Cannon Enhanced Nova Cannon Enhanced Nova Cannon > --- INVENTORY -------- Experimental Biometal Heavy Treads Experimental Biometal Heavy Treads Cooled Impulse Thruster Cooled Impulse Thruster Cooled Impulse Thruster Cooled Impulse Thruster Impulse Thruster Array Large Storage Unit Enhanced Hardcell Cannon Fusion Bomb Launcher [Rating: 192] Favorites ----------- Power Improved Ion Engine Engine Improved Ion Engine Power Core Light Nuclear Core Reactor Quantum Reactor Propulsion Light Treads Treads Light Treads Leg Biometal Leg Wheel Armored Huge Wheel Hover Unit Cooled Antigrav System Flight Unit Cooled VTOL Module Utility Huge Storage Unit Device Improved Heat Sink Storage Huge Storage Unit Processor Core Analyzer Hackware Makeshift Hacking Suite Protection Improved Medium Armor Plating Weapon Enhanced Autogun Energy Gun Precision Beam Rifle Energy Cannon Enhanced Nova Cannon Ballistic Gun Enhanced Autogun Ballistic Cannon Enhanced Hardcell Cannon Launcher Heavy Rocket Launcher Special Weapon Remote Datajack Slashing Weapon Power Sword Piercing Weapon Makeshift Spear Build | -11 -10 -10 -9 -9 -9 -8 -8 -8 -8 -8 -8 -8 -8 -7 -7 -7 -6 -6 -6 -6 -6 -6 -5 -5 -5 -5 -5 -5 -5 -4 -4 -4 -3 -2 -1 -1 ------- Run | Yrd Mat Min Mat Min Exi Min Mat Gar Mat Gar Mat Gar Mat Fac Gar Fac Fac Was Fac Low Low Dat Pro Fac Was Fac Upp Upp War Pro Fac DSF Res Res Acc Com Slots Evolved 18 | . . . 2 . . . 2 . . . . . . 2 . . 2 . . . . . . 2 . . . . . . 2 . 2 2 2 . Power 1 | . . . . . . . . . . . . . . . . . . . . . . . . . . . . . . . 1 . . . . . Propulsion 4 | . . . . . . . 1 . . . . . . . . . 1 . . . . . . 1 . . . . . . . . 1 . . . Utility 11 | . . . 2 . . . . . . . . . . 2 . . 1 . . . . . . 1 . . . . . . 1 . 1 2 1 . Weapon 2 | . . . . . . . 1 . . . . . . . . . . . . . . . . . . . . . . . . . . . 1 . Parts Attached 337 | 8 5 4 15 . 1 1 6 11 . 14 7 12 19 6 19 16 37 3 19 7 11 . 1 11 . 4 1 . 25 1 . 18 14 34 5 2 Power 39 | 1 1 1 1 . . . 2 1 . 1 1 1 . 1 2 . 3 . 3 2 1 . 1 1 . . . . 2 . . 3 3 6 1 . Engine 15 | 1 1 1 1 . . . 1 1 . 1 . 1 . 1 1 . 2 . 1 . 1 . . . . . . . . . . . . 1 . . Core 13 | . . . . . . . 1 . . . 1 . . . 1 . 1 . 2 2 . . 1 1 . . . . 1 . . 1 . 1 . . Reactor 11 | . . . . . . . . . . . . . . . . . . . . . . . . . . . . . 1 . . 2 3 4 1 . Propulsion 94 | 2 1 1 2 . . . 2 3 . 7 1 6 5 3 3 2 12 1 5 . 2 . . 1 . 1 . . 9 . . 9 4 12 . . Treads 38 | 2 . 1 2 . . . 1 3 . 7 1 6 3 . 1 1 1 . . . . . . . . . . . . . . 6 . 3 . . Leg 26 | . . . . . . . . . . . . . . . . . 7 . 1 . . . . . . . . . 6 . . 3 2 7 . . Wheel 9 | . . . . . . . 1 . . . . . 2 2 2 1 . . 1 . . . . . . . . . . . . . . . . . Hover 2 | . . . . . . . . . . . . . . 1 . . . . . . . . . . . . . . 1 . . . . . . . Flight 19 | . 1 . . . . . . . . . . . . . . . 4 1 3 . 2 . . 1 . 1 . . 2 . . . 2 2 . . Utility 128 | 2 1 . 8 . 1 . 2 6 . 5 4 3 4 2 9 9 15 1 8 4 7 . . 5 . 2 . . 8 1 . 3 6 11 1 . Device 49 | 1 1 . 2 . . . . 2 . 3 1 2 1 1 5 1 8 1 1 2 2 . . 2 . 2 . . 3 . . 1 2 4 1 . Storage 13 | 1 . . 1 . 1 . . . . . . . . . . . 1 . 2 . 1 . . 2 . . . . 1 . . . 1 2 . . Processor 19 | . . . 2 . . . . . . 1 1 . . 1 1 1 3 . 4 . . . . 1 . . . . 1 1 . 1 1 . . . Hackware 16 | . . . . . . . . . . . . . . . . 4 2 . 1 . 4 . . . . . . . 1 . . . 2 2 . . Protection 31 | . . . 3 . . . 2 4 . 1 2 1 3 . 3 3 1 . . 2 . . . . . . . . 2 . . 1 . 3 . . Artifact . | . . . . . . . . . . . . . . . . . . . . . . . . . . . . . . . . . . . . . Weapon 76 | 3 2 2 4 . . 1 . 1 . 1 1 2 10 . 5 5 7 1 3 1 1 . . 4 . 1 1 . 6 . . 3 1 5 3 2 Energy Gun 24 | 2 2 2 . . . . . . . . . . 5 . 3 3 . . . . . . . 1 . . . . 4 . . 1 1 . . . Energy Cannon 12 | . . . . . . . . . . . . . 1 . . 1 1 . . . . . . 1 . . . . . . . 2 . 3 1 2 Ballistic Gun 14 | 1 . . 3 . . 1 . 1 . 1 . . . . 2 1 4 . . . . . . . . . . . . . . . . . . . Ballistic Cannon 1 | . . . . . . . . . . . . . . . . . . . . . . . . . . . . . . . . . . 1 . . Launcher 17 | . . . 1 . . . . . . . 1 1 4 . . . 1 . 3 . . . . . . . 1 . 2 . . . . 1 2 . Special Weapon 2 | . . . . . . . . . . . . 1 . . . . . . . . . . . 1 . . . . . . . . . . . . Impact Weapon . | . . . . . . . . . . . . . . . . . . . . . . . . . . . . . . . . . . . . . Slashing Weapon 3 | . . . . . . . . . . . . . . . . . 1 1 . 1 . . . . . . . . . . . . . . . . Piercing Weapon 3 | . . . . . . . . . . . . . . . . . . . . . 1 . . 1 . 1 . . . . . . . . . . Special Melee Weapon . | . . . . . . . . . . . . . . . . . . . . . . . . . . . . . . . . . . . . . Unidentified Prototypes 40 | . 2 . 2 . . . . . . . . . 2 2 1 3 2 2 2 . . . . 3 . . . . 12 . . 1 2 3 1 . Corrupted Parts 2 | . . . . . . . . . . . . . 1 . . . . . . . . . . . . . . . . . . . 1 . . . System Corruption 9 | . . . . . . . . . . . . . 2 . . . . . . . . . . . . . . . . . . . 7 . . . Parts Lost 108 | . . 4 3 . . . . 4 . 4 1 3 6 . 8 11 7 . 1 7 . . 3 . . 2 . . 2 4 . 6 15 . 3 14 Power 14 | . . . 1 . . . . . . . 1 . 1 . 1 . 2 . . 1 . . 1 . . . . . . . . 2 2 . 2 . Propulsion 20 | . . 1 1 . . . . . . 1 . . 1 . 2 3 . . . . . . . . . . . . . 1 . 2 5 . . 3 Utility 44 | . . 1 1 . . . . 3 . 2 . 1 2 . 3 4 2 . 1 5 . . 2 . . 2 . . 1 . . 2 6 . . 6 Weapon 30 | . . 2 . . . . . 1 . 1 . 2 2 . 2 4 3 . . 1 . . . . . . . . 1 3 . . 2 . 1 5 Highest Loss Streak 13 | . . 4 3 . . . . 1 . 1 1 2 3 . 2 10 3 . 1 4 . . 3 . . 2 . . 1 2 . 6 8 . 2 13 To Critical Strikes 2 | . . . . . . . . . . . . . . . . 1 . . . 1 . . . . . . . . . . . . . . . . Average Backups 16 | 5 7 7 13 14 14 13 19 24 25 24 24 23 24 20 22 20 4 4 6 9 8 7 6 8 10 10 9 9 8 7 7 7 8 7 11 8 Power . | . 1 . . . 1 . . 1 1 . . . . . . . . . . . . . . . . . . . . 1 1 . 1 1 1 . Propulsion 1 | 2 2 2 2 1 . . . 1 1 . 1 1 1 1 1 3 1 1 2 3 3 3 2 1 3 3 3 3 2 2 2 2 2 5 7 6 Utility 10 | . 2 2 5 6 4 6 12 16 22 20 19 17 20 17 18 12 2 2 2 . . . . 1 2 1 2 2 1 1 2 3 3 . 1 1 Weapon 2 | . 1 1 6 7 9 7 6 5 1 1 1 2 1 1 1 3 . 1 1 3 3 3 2 3 3 2 1 1 3 2 2 1 . . 2 1 Tool/Special . | . . . . . . . . . . . . . . . . . . . . . . . . . . . . . . . . . . . . . Unused Backups 86 | . 6 1 2 3 6 . . 8 . 3 7 . 6 2 6 7 4 . 3 1 . . . 2 . . . . 3 . . 2 3 5 . 6 Power 11 | . 3 . . . 3 . . . . . . . . . . . . . 1 1 . . . . . . . . . . . . 2 1 . . Propulsion 24 | . 2 . . 2 . . . . . . . . 1 2 1 2 1 . . . . . . 1 . . . . 2 . . . . 4 . 6 Utility 40 | . 1 1 2 . 3 . . 4 . 3 7 . 4 . 5 4 1 . 2 . . . . . . . . . . . . 2 1 . . . Weapon 8 | . . . . 1 . . . 4 . . . . 1 . . . 2 . . . . . . . . . . . . . . . . . . . Tool/Special 3 | . . . . . . . . . . . . . . . . 1 . . . . . . . 1 . . . . 1 . . . . . . . Average Slot Usage (%) 86 | . 99 96 77 100 77 98 94 99 100 95 99 91 96 92 88 72 64 78 86 75 72 73 68 86 94 92 82 82 90 87 73 76 71 61 70 58 Engine 5 | . 14 14 7 11 11 11 7 9 9 9 1 1 9 2 7 6 1 . 1 . 3 6 2 . . . . . . . . . . . . . Core 1 | . . . . . . . 1 . . . 7 7 . . . . . . 4 5 1 . 3 5 5 5 5 5 2 . . . . . . . Reactor 1 | . . . . . . . . . . . . . . . . . . . . . . . . . . . . . 2 5 5 3 5 7 7 3 Treads 14 | . 27 27 21 22 22 22 20 27 27 26 27 27 25 . . . 5 . . . . . . . . . . . . . . 6 . 2 12 10 Leg 3 | . . . . . . . . . . . . . . . . . 10 . . . . . . . . . . . 15 24 21 11 16 17 . . Wheel 2 | . . . . . . . 1 . . . . . . 22 14 14 . . 1 . . . . . . . . . . . . . . . . . Flight 2 | . . . . . . . . . . . . . . . . . 4 26 24 26 25 20 23 29 29 29 29 29 12 . . . . . . . Device 8 | . 14 11 2 11 11 11 9 . . 7 6 2 11 14 14 10 12 11 8 4 3 . . 10 11 9 5 5 9 17 15 15 13 8 17 16 Storage 8 | . 14 14 11 11 11 11 9 9 9 9 9 9 9 7 7 6 3 . 2 10 11 6 6 7 11 11 11 10 12 13 10 12 10 2 4 3 Processor 5 | . . . 6 . . . . . . 5 9 9 5 6 7 7 9 20 24 2 . . . 4 5 5 5 5 4 2 5 7 8 . . . Hackware 2 | . . . . . . . . . . . . . . . . . 2 13 7 6 11 26 18 11 11 11 11 11 10 5 5 5 7 5 4 3 Protection 11 | . . . 7 22 22 22 18 26 27 13 11 14 9 15 14 15 . . . 4 6 6 6 5 5 4 . . 2 5 5 3 . 3 11 7 Energy Gun 3 | . 26 27 1 . . . . . . . . . 9 15 12 7 . . . . . . . 1 5 5 5 5 10 8 5 3 1 . . . Energy Cannon 1 | . . . . . . . . . . . . . . 7 4 . . . . . . . . . . . . . . . . 4 5 7 8 10 Ballistic Gun 10 | . 1 . 20 22 . 20 27 26 27 23 23 11 5 . 1 . 12 . . . . . . . . . . . . . . . . . . . Launcher 1 | . . . . . . . . . . . 3 8 6 . . . . . 1 4 . . . . . . . 1 . . . . . . 4 2 Peak Build Rating 192 | 8 15 13 24 21 15 22 35 45 39 45 42 38 43 52 66 67 72 77 68 63 62 46 46 83 78 86 80 80 128 126 105 141 145 179 190 192 Average Rating 55 | 5 12 12 17 20 13 21 30 36 39 36 36 34 40 43 52 62 54 60 63 53 48 46 41 68 78 79 76 76 100 110 105 115 123 121 179 158 On Entrance 55 | . 8 13 12 20 13 15 22 34 39 39 36 38 34 34 48 66 3 57 61 63 46 46 46 41 78 78 76 76 74 126 105 105 124 20 179 172 Naked Turns 28 | . . . . . . . . . . . . . . . . 7 . . . . . . . . . . . . . . . . 6 . . 15 Heaviest Build 196 | 13 19 19 39 39 33 39 113 114 113 113 109 110 128 128 132 140 31 9 28 34 32 18 19 32 29 31 35 31 72 72 49 78 82 168 188 196 Greatest Support 255 | 40 40 40 40 40 40 40 60 60 60 60 60 60 62 32 44 75 150 10 23 35 24 18 23 29 29 31 31 31 120 120 105 175 110 255 255 255 Greatest Overweight (x) 11 | 1 . . 1 . . . 11 1 1 1 1 2 10 6 8 7 2 . 2 1 1 . . 1 . . 1 . . . . 1 1 1 . . Average Overweight (x) . | . . . . . . . 2 1 1 1 1 1 1 3 2 2 . . . . . . . . . . . . . . . . . . . . Largest Inventory Capacity 25 | 8 8 8 15 15 25 15 25 25 25 25 25 25 25 25 25 25 5 5 10 10 20 10 10 10 10 10 10 10 10 10 10 10 15 25 25 25 Average Capacity 18 | 7 8 8 14 15 15 15 21 25 25 25 25 25 25 25 25 24 5 5 7 10 10 10 10 10 10 10 10 10 10 10 10 10 11 12 16 22 Most Carried 25 | 8 8 8 15 15 15 15 25 25 25 25 25 25 25 25 25 25 5 5 10 10 10 7 8 10 10 10 10 10 10 10 9 10 12 15 17 15 Average Carried 17 | 5 7 7 13 14 14 13 19 24 25 24 24 23 24 21 22 23 4 4 6 9 9 7 6 8 10 9 9 9 9 9 9 9 9 9 15 11 Final Capacity 25 | 8 8 8 15 15 15 15 25 25 25 25 25 25 25 25 25 5 5 5 10 10 10 10 10 10 10 10 10 10 10 10 10 10 5 15 25 25 Final Carried 25 | 8 8 7 15 15 15 13 24 25 25 25 25 25 23 23 25 5 5 4 10 9 7 7 6 10 10 10 10 10 10 9 9 10 5 15 15 13 Class Distribution -------------------- 25% | Scavenger-Tank 21% | Scavenger-Mutant 12% | Tank 10% | Mutant 8% | Hacker-Mutant 5% | Scavenger-Skirmisher 5% | Hacker-Sprinter Dominant Class ---------------- Mutant | -10/Materials Mutant | -10/Mines Mutant | -9/Materials Scavenger-Mutant | -9/Mines Scavenger-Mutant | -9/Exiles Scavenger-Mutant | -8/Mines Scavenger-Tank | -8/Materials Scavenger-Tank | -8/Garrison Scavenger-Tank | -8/Materials Scavenger-Mutant | -8/Garrison Scavenger-Skirmisher | -8/Materials Scavenger-Mutant | -8/Garrison Scavenger-Tank | -8/Materials Tank | -7/Factory Scavenger-Tank | -7/Garrison Scavenger-Tank | -7/Factory Mutant | -6/Factory Hacker-Sprinter | -6/Waste Scout | -6/Factory Sprinter | -6/Lower Caves Hacker-Sprinter | -6/Lower Caves Hacker-Sprinter | -6/Data Miner Hacker-Sprinter | -5/Proximity Caves Hacker-Sprinter | -5/Factory Hacker-Sprinter | -5/Waste Hacker-Sprinter | -5/Factory Hacker-Sprinter | -5/Upper Caves Hacker-Sprinter | -5/Upper Caves Hacker-Sprinter | -5/Warlord Hacker-Mutant | -4/Proximity Caves Hacker-Mutant | -4/Factory Hacker-Mutant | -4/DSF Hacker-Mutant | -3/Research Tank | -2/Research Scavenger-Tank | -1/Access Scavenger-Tank | -1/Command Resources | -11 -10 -10 -9 -9 -9 -8 -8 -8 -8 -8 -8 -8 -8 -7 -7 -7 -6 -6 -6 -6 -6 -6 -5 -5 -5 -5 -5 -5 -5 -4 -4 -4 -3 -2 -1 -1 ----------- Run | Yrd Mat Min Mat Min Exi Min Mat Gar Mat Gar Mat Gar Mat Fac Gar Fac Fac Was Fac Low Low Dat Pro Fac Was Fac Upp Upp War Pro Fac DSF Res Res Acc Com Matter Collected 11921 | 298 147 63 747 167 . 173 271 1701 31 1137 391 1131 511 197 788 328 633 82 318 105 100 . 129 143 . 227 27 67 690 149 . 181 167 474 200 148 Remotely 10 | 10 . . . . . . . . . . . . . . . . . . . . . . . . . . . . . . . . . . . . Salvage Created 15204 | 101 216 241 832 409 . 72 496 851 . 1204 394 674 1139 197 1424 1012 575 81 746 68 5 . 173 143 . 309 154 233 338 256 . 437 959 173 911 381 Parts 785 | 11 20 9 52 20 . 11 22 47 . 72 37 49 63 15 68 47 21 . 32 5 2 . 12 11 . 8 13 10 8 13 . 12 35 2 41 17 Haulers Intercepted 13 | . . . . . . . . . . . . . 1 1 . 2 . . 4 . . . . 1 . 2 . . . . . . 1 1 . . Recyclers Shooed 7 | . . 1 . 1 . . . . . . . . . 1 . 1 1 . . . . . . . . . . . . . . . . . 1 1 Parts Field Recycled . | . . . . . . . . . . . . . . . . . . . . . . . . . . . . . . . . . . . . . Retrieved Matter . | . . . . . . . . . . . . . . . . . . . . . . . . . . . . . . . . . . . . . Parts Self-Destructed 33 | . . . . . . . . . . . . . . . . . . . . 1 . . 6 . . . 10 4 . 12 . . . . . . Prevented 1 | . . . . . . . . . . . . . . . . . . . . . . . . . . . 1 . . . . . . . . . Kills | -11 -10 -10 -9 -9 -9 -8 -8 -8 -8 -8 -8 -8 -8 -7 -7 -7 -6 -6 -6 -6 -6 -6 -5 -5 -5 -5 -5 -5 -5 -4 -4 -4 -3 -2 -1 -1 ------- Run | Yrd Mat Min Mat Min Exi Min Mat Gar Mat Gar Mat Gar Mat Fac Gar Fac Fac Was Fac Low Low Dat Pro Fac Was Fac Upp Upp War Pro Fac DSF Res Res Acc Com Combat Hostiles Destroyed 314 | . 5 8 14 6 . 3 6 22 . 26 13 27 26 1 28 15 6 . 6 3 1 . 8 . . . 10 11 10 6 . 10 17 1 17 8 Melee 9 | . . . . . . . . . . . . . . . . . 1 . 3 1 . . 4 . . . . . . . . . . . . . Guns 160 | . 4 8 14 6 . 3 6 14 . 26 9 14 6 . 13 12 5 . . . . . . . . . 1 1 2 6 . 6 4 . . . Cannons 23 | . . . . . . . . . . . . . . 1 5 . . . . . . . . . . . . . . . . 3 5 . 6 3 AOE 115 | . 1 . . . . . . 8 . . 4 13 18 . 10 3 . . 3 2 1 . 4 . . . 9 10 7 . . 1 6 . 10 5 Classes Destroyed 24 | 2 5 1 3 . . . 1 . . 2 2 . 3 . . . 1 . . 1 . . . . . . . . 1 . . . . . 1 1 Worker 17 | . . . 2 1 . 2 1 . . . 2 . . . . . 3 . 4 . . . . . . . . . . . . . 1 . 1 . Builder 13 | . 1 1 . . . . . . . . 2 . 2 . . 2 . . 2 . . . . 2 . . . . . . . . . . 1 . Tunneler 6 | 2 . . . 1 . . . . . . . . . 1 . . . . . . . . . 1 . . . . . . . . . . 1 . Hauler 13 | . . . . . . . . . . . . . 1 1 . 2 . . 4 . . . . 1 . 2 . . . . . . 1 1 . . Recycler 15 | 1 . . 1 2 . . 1 . . . . . 1 1 . 2 2 . . . . . . . . 1 . . . . . . 2 . . 1 Mechanic 1 | . . . . . . . . . . . 1 . . . . . . . . . . . . . . . . . . . . . . . . . Operator 5 | . 1 . 1 . . . 1 . . . . . 1 . . . . . . . . . . . . . . . . . . . 1 . . . Watcher 11 | . 1 . 4 . . . 1 . . . . . . . . 1 . . 2 . . . . . . . . . . . . . 2 . . . Swarmer 90 | . 3 . . 3 . 3 . 6 . 3 8 10 . . 13 3 3 . 3 . . . 8 . . . 10 . . . . 3 6 . . 5 Saboteur 3 | . . . . . . . . . . . . . . . . . 1 . . . . . . . . . . . 2 . . . . . . . Grunt 110 | . 2 2 10 4 . . 3 13 . 13 1 9 17 1 11 2 . . 2 . . . . . . . . 8 3 . . . 1 . 8 . Brawler 8 | . . . 1 . . . 1 . . . . 1 2 . . 1 . . . . . . . . . . . . 2 . . . . . . . Duelist 3 | . . . . . . . . . . . 1 1 . . . . . . . . . . . . . . . . 1 . . . . . . . Protector 4 | . . . . . . . . . . . . . 1 . . 1 . . . . . . . . . . . . 2 . . . . . . . Sentry 22 | . . . 3 . . . 2 2 . 2 3 4 2 . 1 1 1 . . . . . . . . . . . . . . . . 1 . . Specialist 7 | . . . . . . . . . . 1 . . 2 . 1 1 . . . . . . . . . . . . . . . 2 . . . . Hunter 26 | . . . . . . . 1 1 . 1 . 1 1 . 1 3 . . . 2 . . . . . . . . 2 2 . 4 4 . 3 . Programmer 31 | . . . . . . . . . . 6 . 2 . . 1 4 1 . 1 . . . . . . . . . . 4 . . 6 . 4 2 Heavy 3 | . . . . . . . . . . . . . 1 . . . . . . . . . . . . . . . . . . 1 . . 1 . Behemoth 1 | . . . . . . . . . . . . . . . . . . . . . . . . . . . . . . . . . . . 1 . Striker 1 | . . . . . . . . . . . . . . . . . . . . . . . . . . . . . . . . . . . . 1 Executioner 1 | . . . . . . . . . . . . . . . . . . . . . . . . . . . . . 1 . . . . . . . Master Thief 5 | . . . . . . . . . . . . . . . . . . . . 1 1 . . . . . . 3 . . . . . . . . Assembled 6 | . . 6 . . . . . . . . . . . . . . . . . . . . . . . . . . . . . . . . . . Best Kill Streak 12 | 2 3 4 6 4 . 4 3 5 . 3 5 9 8 3 10 7 4 . 5 2 1 . 4 2 . 2 5 8 7 4 . 4 12 1 9 7 Combat Bots Only 10 | . 3 4 3 3 . 2 3 5 . 3 5 9 8 1 10 4 4 . 3 2 1 . 4 . . . 5 8 7 4 . 4 7 1 6 6 Max Kills in Single Turn 6 | 1 2 1 2 2 . 2 1 2 . 1 3 4 4 1 3 3 1 . 4 1 1 . 3 1 . 1 4 5 6 1 . 1 4 1 3 3 Gunslinging 1 | . . . 1 . . . . . . . . . . . . . . . . . . . . . . . . . . . . . . . . . Exploded 5 | . 1 . . . . . . 2 . . 3 3 4 . 3 3 . . 3 1 1 . 3 . . . 4 5 5 . . 1 2 . 3 3 Melee 1 | . . . . . . . . . . . . . . . . . 1 . 1 1 . . 1 . . . . . . . . . . . . . Uniques/NPCs Destroyed . | . . . . . . . . . . . . . . . . . . . . . . . . . . . . . . . . . . . . . Combat | -11 -10 -10 -9 -9 -9 -8 -8 -8 -8 -8 -8 -8 -8 -7 -7 -7 -6 -6 -6 -6 -6 -6 -5 -5 -5 -5 -5 -5 -5 -4 -4 -4 -3 -2 -1 -1 -------- Run | Yrd Mat Min Mat Min Exi Min Mat Gar Mat Gar Mat Gar Mat Fac Gar Fac Fac Was Fac Low Low Dat Pro Fac Was Fac Upp Upp War Pro Fac DSF Res Res Acc Com Hostile Shots Fired 2488 | . 7 45 67 20 . 28 23 87 . 129 29 131 76 47 177 299 154 . 40 27 8 . 18 . . 24 12 8 17 75 . 145 378 28 119 270 Missed 797 | . 4 11 20 7 . 13 5 18 . 40 9 38 22 17 57 91 53 . 21 6 4 . 5 . . 17 5 1 5 34 . 59 143 10 29 53 Hits 1691 | . 3 34 47 13 . 15 18 69 . 89 20 93 54 30 120 208 101 . 19 21 4 . 13 . . 7 7 7 12 41 . 86 235 18 90 217 Melee 33 | . . 2 1 . . . . . . . . 3 . . . . 1 . . 5 4 . . . . . . 1 2 . . . . . . 14 Projectile 1658 | . 3 32 46 13 . 15 18 69 . 89 20 90 54 30 120 208 100 . 19 16 . . 13 . . 7 7 6 10 41 . 86 235 18 90 203 AOE 3 | . . . . . . . . . . . . . . . . . . . . . . . . . . . . . 3 . . . . . . . Critical Strikes 75 | . . . 1 . . . . 3 . 8 1 5 2 . 3 12 3 . 1 1 . . . . . . . . 1 4 . 6 8 2 3 11 Actively Blocked 6 | . . . . . . . . . . 2 . 2 . . . . . . . . . . . . . . . . . 2 . . . . . . Part Disruptions 5 | . . . . . . . . . . . . 1 . . . . . . . 1 . . . . . . . . . . . 1 1 . . 1 Damage Taken 28407 | . 38 545 648 100 . 109 210 870 . 1222 272 1501 1024 288 1342 2655 1488 . 418 439 85 . 224 26 . 135 126 228 415 525 . 1491 4405 225 2292 5061 Core 5004 | . 14 73 104 24 . 17 49 37 . 120 26 190 124 44 109 449 167 . 201 71 48 . 26 26 . 36 . 52 32 49 . 184 1110 . 107 1515 Absorbed by Shields 3080 | . . . 4 38 . 46 77 51 . . . 21 . . . . . . . . . . . . . . . . 190 189 . 156 1156 235 433 484 Reduced by Siege Mode 264 | . . . . . . . . . . . . . . . . . . . . . . . . . . . . . . . . . . . 9 255 Redirected to Shielding 466 | . . . . 9 . 5 . 106 . 107 14 86 . . . . . . . 19 6 . 49 . . 29 . . . 18 . 18 . . . . Ignored by Resistances 1260 | . . . . . . . 12 92 . 76 . . 251 112 238 413 33 . . . . . . . . . . . 21 . . . 12 . . . Regen/Repaired (Parts) 85 | . . . . . . . . . . . . . . . . . . . . . . . . . . . . . 85 . . . . . . . Core Remaining (%) 55 | 100 . 65 . . . 63 . . . . . . . . . 14 . . . . . . 39 . . . . . . 80 . 84 14 100 . . Volleys Fired 1021 | 6 11 22 71 19 . 10 26 86 . 86 30 103 50 8 166 22 25 . 1 5 2 . 2 2 . . 6 6 41 34 . 46 64 18 32 21 Largest 4 | 2 2 2 2 2 . 2 3 3 . 3 3 2 3 3 3 2 3 . 1 1 1 . 1 1 . . 2 1 3 2 . 1 2 3 3 4 Hottest 480 | 70 90 90 50 50 . 50 75 78 . 78 81 67 190 190 209 160 84 . 45 45 45 . 45 24 . . 117 45 195 160 . 94 188 283 360 480 Shots Fired 1837 | 12 22 42 141 38 . 20 78 213 . 219 77 139 80 24 220 67 64 . 1 5 2 . 2 2 . . 7 6 53 37 . 46 71 43 60 46 Gun 1482 | 12 22 42 138 38 . 20 78 201 . 219 74 115 56 16 170 65 64 . . . . . . 1 . . 4 3 37 36 . 40 31 . . . Cannon 216 | . . . . . . . . . . . . . 1 8 37 . . . . . . . . . . . . . . . . 6 32 43 47 42 Launcher 117 | . . . 3 . . . . 12 . . 3 17 23 . 13 2 . . 1 5 2 . 2 . . . 3 3 2 1 . . 8 . 13 4 Special 22 | . . . . . . . . . . . . 7 . . . . . . . . . . . 1 . . . . 14 . . . . . . . Kinetic 1069 | 6 . . 138 38 . 20 78 201 . 219 74 115 3 . 97 8 64 . . . . . . . . . . . . . . . . 8 . . Thermal 400 | 6 . . . . . . . . . . . . 3 24 110 57 . . . . . . . 1 . . 4 3 16 21 . . 31 35 47 42 Explosive 109 | . . . 3 . . . . 12 . . 3 17 23 . 13 2 . . 1 5 2 . 2 . . . 3 3 2 1 . . . . 13 4 Electromagnetic 176 | . 22 42 . . . . . . . . . . 51 . . . . . . . . . . . . . . . 21 2 . 6 32 . . . Entropic 61 | . . . . . . . . . . . . . . . . . . . . . . . . . . . . . . 13 . 40 8 . . . Robot Hit Streak 45 | 2 5 6 15 4 . 2 4 12 . 8 7 11 12 6 45 7 29 . 6 5 3 . 1 2 . . 4 2 6 3 . 5 7 8 9 8 Robot Miss Streak 10 | 2 3 4 5 3 . 4 4 4 . 5 7 3 2 1 6 10 6 . 1 2 7 . 5 . . . 3 3 5 5 . 5 5 6 2 6 Penetration Max 1 | . . . . . . . . . . 1 1 1 . . . . 1 . . . . . . . . . . . . . . . . . . . Secondary Targets 21 | . 2 1 1 2 . . 1 3 . 7 . . . . 2 . 1 . . . . . . . . . . . 1 . . . . . . . Max Gunslinging Chain 1 | . 1 1 1 1 . . 1 1 . 1 . . . . 1 . 1 . . . . . . . . . . . 1 . . . . . . . Autonomous 42 | . . . . . . . . . . . . . . . . 42 . . . . . . . . . . . . . . . . . . . . Shots Hit Robots 1116 | 5 16 32 89 20 . 6 37 94 . 111 41 71 59 16 158 42 45 2 33 6 1 . 6 8 . 5 4 5 29 17 . 36 40 23 33 26 Core Hits 756 | 4 9 23 29 12 . 5 19 46 . 46 22 46 55 6 102 47 16 . 17 10 9 . 11 2 . 3 15 51 19 14 . 29 26 13 35 15 Critical Kills 7 | . . . 1 . . . . . . 2 . . . . . . 3 . . . . . . . . . . . . . . . . . 1 . Critical Parts Destroyed 9 | . . . . . . . . . . 2 . 1 . . 1 . 1 . . . . . . . . . . . . 1 . 3 . . . . Critical Strikes 33 | . . . 1 . . . . . . 4 1 1 2 1 5 1 4 . 4 . . . 1 . . 2 . . . 1 . 3 1 . 1 . Burn 7 | . . . . . . . . . . . . . . 1 4 1 . . . . . . . . . . . . . . . . 1 . . . Meltdown 1 | . . . . . . . . . . . . . . . . . . . . . . . . . . . . . . . . . . . 1 . Destroy 12 | . . . 1 . . . . . . 4 1 1 . . 1 . 4 . . . . . . . . . . . . . . . . . . . Corrupt 2 | . . . . . . . . . . . . . 2 . . . . . . . . . . . . . . . . . . . . . . . Sever 4 | . . . . . . . . . . . . . . . . . . . 4 . . . . . . . . . . . . . . . . . Impale 3 | . . . . . . . . . . . . . . . . . . . . . . . 1 . . 2 . . . . . . . . . . Detonate 4 | . . . . . . . . . . . . . . . . . . . . . . . . . . . . . . 1 . 3 . . . . Melee Attacks 86 | . . . . . . . . . . . . . . . . . 4 2 43 4 . . 7 18 . 8 . . . . . . . . . . Impact . | . . . . . . . . . . . . . . . . . . . . . . . . . . . . . . . . . . . . . Slashing 53 | . . . . . . . . . . . . . . . . . 4 2 43 4 . . . . . . . . . . . . . . . . Piercing 33 | . . . . . . . . . . . . . . . . . . . . . . . 7 18 . 8 . . . . . . . . . . Sneak Attacks 20 | . . . . . . . . . . . . . . . . . 3 . 10 . . . . 4 . 3 . . . . . . . . . . Combat Hostiles . | . . . . . . . . . . . . . . . . . . . . . . . . . . . . . . . . . . . . . Follow-up Attacks . | . . . . . . . . . . . . . . . . . . . . . . . . . . . . . . . . . . . . . Damage Inflicted 45836 | 65 390 563 1592 401 . 119 639 2222 . 2200 1227 3199 2873 349 3608 2463 1131 182 2153 426 643 . 270 413 . 308 564 1649 1134 827 . 2597 4524 1058 4046 2001 Guns 18459 | 65 298 529 1592 401 . 119 639 1575 . 2200 890 1134 806 184 2049 1495 830 . . . . . . 24 . . 48 49 361 617 . 2090 464 . . . Cannons 4780 | . . . . . . . . . . . . . . 104 251 . . . . . . . . . . . . . . . . 223 861 1058 1303 980 Explosions 19144 | . 92 34 . . . . . 647 . . 337 2065 2067 . 1308 968 . . 223 354 643 . 155 . . . 516 1600 773 210 . 284 3104 . 2743 1021 Melee 3294 | . . . . . . . . . . . . . . . . . 298 182 1930 72 . . 115 389 . 308 . . . . . . . . . . Ramming 159 | . . . . . . . . . . . . . . 61 . . 3 . . . . . . . . . . . . . . . 95 . . . Kinetic 10969 | 27 . . 1592 401 . 119 639 1575 . 2200 890 1134 36 . 1103 164 830 . . . . . . . . . . . . . . . . 259 . . Thermal 7578 | 38 92 34 . . . . . . . . . . 137 288 1197 1331 . . . . . . . 24 . . 48 49 220 290 . 284 464 799 1303 980 Explosive 15411 | . . . . . . . . 647 . . 337 2065 1948 . 1308 968 . . 223 354 643 . 155 . . . 516 1600 773 110 . . . . 2743 1021 Electromagnetic 2804 | . 298 529 . . . . . . . . . . 752 . . . . . . . . . . . . . . . 141 . . 223 861 . . . Impact . | . . . . . . . . . . . . . . . . . . . . . . . . . . . . . . . . . . . . . Slashing 2482 | . . . . . . . . . . . . . . . . . 298 182 1930 72 . . . . . . . . . . . . . . . . Piercing 812 | . . . . . . . . . . . . . . . . . . . . . . . 115 389 . 308 . . . . . . . . . . Entropic 5621 | . . . . . . . . . . . . . . . . . . . . . . . . . . . . . . 427 . 2090 3104 . . . Highest Corruption 34 | . . . 3 3 3 3 . . . 5 5 7 11 . 1 6 2 2 3 3 3 3 3 . . . . . 2 6 . . 34 . 3 9 Average Corruption 4 | . . . 3 3 3 3 . . . 4 5 6 8 . 1 1 1 2 2 3 3 3 3 . . . . . 1 3 . . 17 . 2 7 Corruption Purged . | . . . . . . . . . . . . . . . . . . . . . . . . . . . . . . . . . . . . . Corruption Blocked . | . . . . . . . . . . . . . . . . . . . . . . . . . . . . . . . . . . . . . Effects 312 | . . . 14 12 7 25 . . . 43 20 55 46 . 15 11 . 2 10 3 4 1 1 . . . . . 1 3 . . 29 . 1 9 Message Errors 65 | . . . 1 2 2 5 . . . 4 6 15 15 . 2 3 . . . . 2 . . . . . . . . . . . 6 . . 2 Matter Fused 70 | . . . 4 1 4 2 . . . 12 3 9 7 . 5 5 . 1 5 1 1 . 1 . . . . . 1 1 . . 4 . . 3 Heat Flow Errors 43 | . . . 1 3 1 5 . . . 5 5 6 6 . 3 2 . 1 1 1 . . . . . . . . . . . . 3 . . . Energy Discharges 45 | . . . 1 3 . 6 . . . 8 2 8 5 . 2 . . . 3 . 1 1 . . . . . . . . . . 5 . . . Parts Rejected 9 | . . . 1 . . . . . . 1 2 . 1 . . . . . 1 1 . . . . . . . . . . . . 1 . 1 . Parts Fused 2 | . . . . . . . . . . . . . 2 . . . . . . . . . . . . . . . . . . . . . . . Data Loss (minor) 35 | . . . 3 3 . 3 . . . 6 1 7 3 . 2 1 . . . . . . . . . . . . . 1 . . 4 . . 1 Data Loss (major) 14 | . . . . . . 2 . . . 4 . 4 3 . . . . . . . . . . . . . . . . . . . 1 . . . Misfires 15 | . . . 2 . . 1 . . . 2 1 3 2 . 1 . . . . . . . . . . . . . . 1 . . 1 . . 1 Alerts 3 | . . . . . . . . . . 1 . 1 1 . . . . . . . . . . . . . . . . . . . . . . . Misdirections 2 | . . . . . . . . . . . . . . . . . . . . . . . . . . . . . . . . . 2 . . . Weapon Failures 9 | . . . 1 . . 1 . . . . . 2 1 . . . . . . . . . . . . . . . . . . . 2 . . 2 Overload Shots 3 | . . . . . . . . . . . . . . . . . . . . . . . . . . . 1 . 2 . . . . . . . Overflow Damage 1736 | . . . . . . . . 78 . . . 129 8 . 27 . 85 130 153 22 21 . . 105 . 13 . . 82 70 . . 503 . 256 54 Projectiles 151 | . . . . . . . . . . . . . . . . . . . . . . . . . . . . . . . . . 58 . 59 34 Explosions 1089 | . . . . . . . . 78 . . . 129 8 . 27 . . . . 20 21 . . . . . . . 82 70 . . 437 . 197 20 Melee 496 | . . . . . . . . . . . . . . . . . 85 130 153 2 . . . 105 . 13 . . . . . . 8 . . . Knockbacks 1 | . . . . . . . . . . . . . . . . . . . . . . . . . . . . . . . . . . 1 . . Impact . | . . . . . . . . . . . . . . . . . . . . . . . . . . . . . . . . . . . . . Kinetic 1 | . . . . . . . . . . . . . . . . . . . . . . . . . . . . . . . . . . 1 . . Secondary . | . . . . . . . . . . . . . . . . . . . . . . . . . . . . . . . . . . . . . Self-Inflicted Damage 1276 | . . 35 38 . . . . 48 . . . 48 78 30 30 4 . . . 86 82 . 38 . . . 14 114 . . . . 246 . 282 103 Shots 35 | . . 1 1 . . . . 1 . . . 1 3 . 1 1 . . . 3 4 . 2 . . . 1 5 . . . . 2 . 7 2 Rammed 5 | . . . . . . . . . . . . . . 5 . . . . . . . . . . . . . . . . . . . . . . Targets Rammed 19 | . . . . . . . . . . . . . . 5 . . 2 . . . . . . . . . . . . . . . 12 . . . Kicked 14 | . . . . . . . . . . . . . . . . . 2 . . . . . . . . . . . . . . . 12 . . . Crushed . | . . . . . . . . . . . . . . . . . . . . . . . . . . . . . . . . . . . . . Highest Temperature 507 | 27 132 276 130 221 122 239 318 507 . 244 260 287 474 87 252 406 15 254 106 276 . . . . . 5 20 21 84 3 . 4 382 300 266 185 Average Temperature 88 | 11 50 103 22 49 69 82 101 122 . 59 53 100 111 42 75 127 8 131 55 161 . . . . . 5 10 12 30 2 . 2 117 121 86 74 Received Heat Transfer 3810 | . 18 106 284 22 . 12 36 422 . 450 108 291 216 18 411 402 340 . 108 . . . . . . 9 . 57 14 . . . 200 36 61 189 Effects 19 | . . . . 2 . . . 13 . . . . . . . 1 . . . 1 . . . . . . . . . . . . 2 . . . Shutdowns 4 | . . . . . . . . 4 . . . . . . . . . . . . . . . . . . . . . . . . . . . . Energy Bleed 2 | . . . . . . . . 1 . . . . . . . 1 . . . . . . . . . . . . . . . . . . . . Interference 9 | . . . . 2 . . . 5 . . . . . . . . . . . 1 . . . . . . . . . . . . 1 . . . Matter Decay 3 | . . . . . . . . 3 . . . . . . . . . . . . . . . . . . . . . . . . . . . . Damage (minor) 1 | . . . . . . . . . . . . . . . . . . . . . . . . . . . . . . . . . 1 . . . Siege Activations 2 | . . . . . . . . . . . . . . . . . . . . . . . . . . . . . . . . . . . 1 1 Total Turns 32 | . . . . . . . . . . . . . . . . . . . . . . . . . . . . . . . . . . . 7 25 Longest Duration 25 | . . . . . . . . . . . . . . . . . . . . . . . . . . . . . . . . . . . 7 25 Martial Activations . | . . . . . . . . . . . . . . . . . . . . . . . . . . . . . . . . . . . . . Shielding Activations . | . . . . . . . . . . . . . . . . . . . . . . . . . . . . . . . . . . . . . Robots Disrupted 3 | . . . . . . . . . . . . . 1 . . . . . . . . . . . . . . . 2 . . . . . . . Combat Hostiles 2 | . . . . . . . . . . . . . 1 . . . . . . . . . . . . . . . 1 . . . . . . . Robots Corrupted 5 | . . . . . . . . . . . . . 2 . . . . . . . . . . . . . . . . . . . 3 . . . Combat Hostiles 4 | . . . . . . . . . . . . . 2 . . . . . . . . . . . . . . . . . . . 2 . . . Parts Fried 13 | . . . . . . . . . . . . . 3 . . . . . . . . . . . . . . . . . . 1 9 . . . Impact Corruptions 1 | . . . . . . . . . . . . . . . . . . . . . . . . . . . . . . . . . 1 . . . Robots Melted 2 | . . . . . . . . . . . . . . . . . . . . . . . . . . . . . . . . . . 1 1 . Combat Hostiles 2 | . . . . . . . . . . . . . . . . . . . . . . . . . . . . . . . . . . 1 1 . Parts Melted 21 | . . . . . . . . . . . . . . 1 4 4 . . . . . . . . . . . . 1 . . . 1 1 7 2 Heat Transferred 9503 | 111 150 50 . . . . . . . . . . 137 666 2692 1448 . . . . . . . 50 . . 100 100 450 400 . 250 629 515 904 851 Parts Sabotaged 3 | . . . . . . . . . . . . . . . . . 3 . . . . . . . . . . . . . . . . . . . Parts Stolen 9 | . . . . . . . . . . . . . . . . . . . . 5 3 . . . . . . 1 . . . . . . . . Parts Stripped . | . . . . . . . . . . . . . . . . . . . . . . . . . . . . . . . . . . . . . Power Chain Reactions 5 | . 2 1 . . . . . . . . . . 2 . . . . . . . . . . . . . . . . . . . . . . . Alert | -11 -10 -10 -9 -9 -9 -8 -8 -8 -8 -8 -8 -8 -8 -7 -7 -7 -6 -6 -6 -6 -6 -6 -5 -5 -5 -5 -5 -5 -5 -4 -4 -4 -3 -2 -1 -1 ------- Run | Yrd Mat Min Mat Min Exi Min Mat Gar Mat Gar Mat Gar Mat Fac Gar Fac Fac Was Fac Low Low Dat Pro Fac Was Fac Upp Upp War Pro Fac DSF Res Res Acc Com Maximum Alert Level 5 | . . . 1 . . . . 4 3 5 4 5 4 2 4 4 2 . 1 . . . . . . . . . . . 2 2 3 2 2 2 Low Security (%) 27 | 100 100 100 76 100 . 100 100 14 . . . . . . . . . 100 97 . . . . 100 100 100 . . . . . . . 54 35 . Level 1 8 | . . . 23 . . . . 9 . . . . . . 1 . . . 2 . . . . . . . . . . . . . 54 41 37 79 Level 2 15 | . . . . . . . . 9 . 13 . . . 100 16 14 100 . . . . . . . . . . . . . 100 100 43 3 27 20 Level 3 18 | . . . . . . . . 38 100 18 4 22 84 . 23 48 . . . . . . . . . . . . . . . . 1 . . . Level 4 22 | . . . . . . . . 28 . 38 95 34 15 . 58 37 . . . . . . . . . . . . . . . . . . . . Level 5 6 | . . . . . . . . . . 29 . 43 . . . . . . . . . . . . . . . . . . . . . . . . High Security . | . . . . . . . . . . . . . . . . . . . . . . . . . . . . . . . . . . . . . Max Security . | . . . . . . . . . . . . . . . . . . . . . . . . . . . . . . . . . . . . . Sterilizations 1 | . . . . . . . . . . . . . . . . . . . . . . . . . . . . . . . . 1 . . . . Peak Influence 2224 | 5 95 82 248 98 . 102 119 1504 894 2123 1236 2224 1369 605 1484 1276 604 171 217 . . . . 91 12 31 . . . . 618 656 731 411 574 511 Initial 1084 | . 3 27 . 83 . . . 41 733 574 1034 758 1084 605 361 779 602 171 84 . . . . 75 12 1 . . . . 618 436 369 411 22 348 Average 716 | 1 26 18 117 39 . 18 46 795 798 1335 1161 1487 999 565 1122 915 532 149 122 . . . . 62 9 12 . . . . 618 568 454 189 287 374 Influence Increases 15394 | 15 176 60 492 254 . 184 216 1543 181 1729 567 1556 943 52 1203 1226 363 . 453 50 . . 180 91 . 48 250 180 190 150 605 280 976 85 800 296 Destroy 0b10 Robot/C 7300 | . 100 40 280 180 . 140 120 700 100 720 320 660 520 20 640 540 120 . 180 40 . . 160 . . . 200 160 180 120 . 200 340 20 340 160 Destroy 0b10 Robot/NC 485 | 15 15 5 40 20 . 15 20 5 . 5 25 . 30 15 30 50 25 . 60 . . . . 20 . 15 . . 5 . . 10 35 5 15 5 Destroy Leader 1056 | . 22 10 58 30 . 20 42 30 30 30 90 60 112 2 40 106 30 . 40 10 . . 20 2 . 4 20 20 . 30 . 40 66 12 60 20 Allied During Kill 458 | . . . . 9 . 9 2 53 33 38 17 42 2 . 12 226 . . . . . . . . . . . . 5 . . . . . 10 . Successful Hack 238 | . 17 . 12 . . . . 16 . 21 4 . . 14 7 16 46 . 40 . . . . 12 . 14 . . . . 5 . 14 . . . Select Force Hacks 40 | . . . . . . . . . . . . . . . . 20 20 . . . . . . . . . . . . . . . . . . . Disable Machine 555 | . . . 30 15 . . 15 30 15 15 60 30 105 . 15 45 15 . 15 . . . . 15 . . . . . . . . 75 . 45 15 Anti-Garrison Action 2500 | . . . . . . . . 650 . 850 . 500 . . 350 150 . . . . . . . . . . . . . . . . . . . . Destroy Structure 1457 | . 7 5 27 . . . 2 59 3 50 36 189 159 1 109 43 2 . 28 . . . . 12 . . . . . . . 30 236 33 330 96 Advance Influence 600 | . . . . . . . . . . . . . . . . . . . . . . . . . . . . . . . 600 . . . . . Partial Spotted 45 | . . . . . . . . . . . . . . . . . . . 30 . . . . 15 . . . . . . . . . . . . Lose Combat Pursuer 660 | . 15 . 45 . . . 15 . . . 15 75 15 . . 30 105 . 60 . . . . 15 . 15 30 . . . . . 210 15 . . Influence Decreases 15010 | 10 110 131 277 434 35 184 152 103 801 490 1523 499 1836 866 236 1481 1101 370 365 228 31 . 60 175 34 50 40 80 389 231 12 247 901 778 292 458 Entered New Map 8162 | . 2 44 . 132 35 . . 23 771 310 1089 409 1140 726 156 705 627 320 37 78 7 . . 45 24 1 . 40 310 111 12 187 287 320 16 198 Time Decay 5154 | 10 108 87 247 302 . 184 152 . 30 . 404 . 446 140 . 526 404 50 278 80 24 . 30 130 10 38 40 40 66 100 . . 464 458 186 120 Lost Part 994 | . . . 30 . . . . 40 . 40 10 30 60 . 80 110 70 . 10 70 . . 30 . . 11 . . 3 20 . 60 150 . 30 140 Lost Ally 550 | . . . . . . . . 40 . 140 20 60 40 . . 140 . . 40 . . . . . . . . . 10 . . . . . 60 . Purge Threat 150 | . . . . . . . . . . . . . 150 . . . . . . . . . . . . . . . . . . . . . . . Squads Dispatched 57 | . . . 1 . . . . . 2 . 3 . 7 1 . 9 5 . 6 . . . . 4 . . . . . . . 2 8 . 7 2 Investigation 8 | . . . . . . . . . . . . . 1 . . 2 2 . 2 . . . . 1 . . . . . . . . . . . . Extermination 12 | . . . . . . . . . . . . . . . . 2 2 . 1 . . . . 1 . . . . . . . . 4 . 1 1 Reinforcement 17 | . . . 1 . . . . . . . 1 . 5 . . 1 . . . . . . . 1 . . . . . . . 2 2 . 3 1 Assault 10 | . . . . . . . . . . . 2 . 1 . . 2 1 . . . . . . . . . . . . . . . 2 . 2 . Garrison 10 | . . . . . . . . . 2 . . . . 1 . 2 . . 3 . . . . 1 . . . . . . . . . . 1 . Intercept . | . . . . . . . . . . . . . . . . . . . . . . . . . . . . . . . . . . . . . Searches Triggered . | . . . . . . . . . . . . . . . . . . . . . . . . . . . . . . . . . . . . . Data Miner Redirects 1 | . . . . . . . . . . . . . . . . . . . . . . . . . . . . . . . . . 1 . . . Construction Impeded 2 | . . . . . . . . . . . . . 1 . . 1 . . . . . . . . . . . . . . . . . . . . Haulers Reinforced 2 | . . . . . . . . . . . . . . . . . . . . . . . . 1 . . . . . . . . 1 . . . Active Scanning Responses . | . . . . . . . . . . . . . . . . . . . . . . . . . . . . . . . . . . . . . Cargo Convoy Interrupts 1 | . . . . . . . . . . . . . . . . 1 . . . . . . . . . . . . . . . . . . . . Stealth | -11 -10 -10 -9 -9 -9 -8 -8 -8 -8 -8 -8 -8 -8 -7 -7 -7 -6 -6 -6 -6 -6 -6 -5 -5 -5 -5 -5 -5 -5 -4 -4 -4 -3 -2 -1 -1 --------- Run | Yrd Mat Min Mat Min Exi Min Mat Gar Mat Gar Mat Gar Mat Fac Gar Fac Fac Was Fac Low Low Dat Pro Fac Was Fac Upp Upp War Pro Fac DSF Res Res Acc Com Distress Signals 27 | . 3 2 2 . . . 2 . . . . . 3 . . 2 . . 1 . . . . . . 1 . . 1 . . . 2 5 1 2 Communications Jammed . | . . . . . . . . . . . . . . . . . . . . . . . . . . . . . . . . . . . . . Distress Signals . | . . . . . . . . . . . . . . . . . . . . . . . . . . . . . . . . . . . . . Times Spotted 565 | . 10 8 25 9 . 7 9 31 1 33 24 28 31 5 31 41 17 . 13 6 6 . 7 2 6 7 9 12 59 11 . 11 50 12 23 21 Peak Tracking Total 16 | . 4 4 6 3 . 4 4 5 1 5 6 5 8 4 7 12 5 . 3 2 5 . 4 2 6 5 5 6 16 5 . 4 15 5 7 11 Tactical Retreats 24 | . 1 . 3 . . . 1 . . . 1 3 1 . . 2 2 . 3 . . . . 1 . 1 1 . . . . . 3 1 . . Traps | -11 -10 -10 -9 -9 -9 -8 -8 -8 -8 -8 -8 -8 -8 -7 -7 -7 -6 -6 -6 -6 -6 -6 -5 -5 -5 -5 -5 -5 -5 -4 -4 -4 -3 -2 -1 -1 ------- Run | Yrd Mat Min Mat Min Exi Min Mat Gar Mat Gar Mat Gar Mat Fac Gar Fac Fac Was Fac Low Low Dat Pro Fac Was Fac Upp Upp War Pro Fac DSF Res Res Acc Com Traps Triggered 51 | . . . . 1 . . . 7 . 3 . 9 1 . 10 2 4 . 2 1 . . . 3 . 1 . . . . . 2 1 . . 4 Indirectly . | . . . . . . . . . . . . . . . . . . . . . . . . . . . . . . . . . . . . . Trap Hack Attempts . | . . . . . . . . . . . . . . . . . . . . . . . . . . . . . . . . . . . . . Triggered . | . . . . . . . . . . . . . . . . . . . . . . . . . . . . . . . . . . . . . Disarmed . | . . . . . . . . . . . . . . . . . . . . . . . . . . . . . . . . . . . . . Reprogrammed . | . . . . . . . . . . . . . . . . . . . . . . . . . . . . . . . . . . . . . Reused . | . . . . . . . . . . . . . . . . . . . . . . . . . . . . . . . . . . . . . Traps Reconfigurated 8 | . . . . . . . . 2 . 3 3 . . . . . . . . . . . . . . . . . . . . . . . . . Traps Extracted . | . . . . . . . . . . . . . . . . . . . . . . . . . . . . . . . . . . . . . Installed . | . . . . . . . . . . . . . . . . . . . . . . . . . . . . . . . . . . . . . Triggered . | . . . . . . . . . . . . . . . . . . . . . . . . . . . . . . . . . . . . . Objects Rigged 1 | . . . . . . . . 1 . . . . . . . . . . . . . . . . . . . . . . . . . . . . Time Bombs Activated 1 | . . . . . . . . 1 . . . . . . . . . . . . . . . . . . . . . . . . . . . . Exploded 1 | . . . . . . . . 1 . . . . . . . . . . . . . . . . . . . . . . . . . . . . Machines | -11 -10 -10 -9 -9 -9 -8 -8 -8 -8 -8 -8 -8 -8 -7 -7 -7 -6 -6 -6 -6 -6 -6 -5 -5 -5 -5 -5 -5 -5 -4 -4 -4 -3 -2 -1 -1 ---------- Run | Yrd Mat Min Mat Min Exi Min Mat Gar Mat Gar Mat Gar Mat Fac Gar Fac Fac Was Fac Low Low Dat Pro Fac Was Fac Upp Upp War Pro Fac DSF Res Res Acc Com Machines Disabled 65 | . . . 2 1 . . 1 6 1 9 4 11 7 . 7 4 1 . 1 . . . . 1 . . . . . . . . 5 . 3 1 Max in Single Turn 2 | . . . 1 1 . . 1 1 . 2 1 2 2 . 2 1 1 . 1 . . . . 1 . . . . . . . . 1 . 1 1 Garrison Access 4 | . . . . . . . . . . . . . . . . 1 . . . . . . . . . . . . . . . . . 2 1 . Garrison Relay 16 | . . . . . . . . 4 . 5 . 3 . . 4 . . . . . . . . . . . . . . . . . . . . . Phase Generator 3 | . . . . . . . . . . 1 . 1 . . 1 . . . . . . . . . . . . . . . . . . . . . Machines Repaired . | . . . . . . . . . . . . . . . . . . . . . . . . . . . . . . . . . . . . . Machines Dismantled . | . . . . . . . . . . . . . . . . . . . . . . . . . . . . . . . . . . . . . Machines Sabotaged . | . . . . . . . . . . . . . . . . . . . . . . . . . . . . . . . . . . . . . Overloaded Fab Kills . | . . . . . . . . . . . . . . . . . . . . . . . . . . . . . . . . . . . . . Hacking | -11 -10 -10 -9 -9 -9 -8 -8 -8 -8 -8 -8 -8 -8 -7 -7 -7 -6 -6 -6 -6 -6 -6 -5 -5 -5 -5 -5 -5 -5 -4 -4 -4 -3 -2 -1 -1 --------- Run | Yrd Mat Min Mat Min Exi Min Mat Gar Mat Gar Mat Gar Mat Fac Gar Fac Fac Was Fac Low Low Dat Pro Fac Was Fac Upp Upp War Pro Fac DSF Res Res Acc Com Machines Accessed 83 | . 3 . 4 1 2 . 1 4 1 5 2 2 2 1 2 10 7 . 6 1 1 3 . 8 . 2 . . 4 . 1 . 8 . 1 1 Terminals 47 | . 3 . 4 . . . . 4 . 5 1 2 2 . 2 4 4 . 2 . . . . 6 . 1 . . . . 1 . 5 . . 1 Fabricators 12 | . . . . . . . . . . . . . . . . 4 2 . 3 . . . . . . . . . . . . . 2 . 1 . Repair Stations . | . . . . . . . . . . . . . . . . . . . . . . . . . . . . . . . . . . . . . Recycling Units 6 | . . . . . . . . . . . . . . . . 1 1 . 1 . . . . 1 . 1 . . . . . . 1 . . . Scanalyzers . | . . . . . . . . . . . . . . . . . . . . . . . . . . . . . . . . . . . . . Garrison Access 6 | . . . . . . . 1 . 1 . 1 . . 1 . 1 . . . . . . . 1 . . . . . . . . . . . . Total Hacks 202 | . 8 . 13 1 3 . 1 8 1 10 3 4 8 2 5 30 15 . 12 1 1 23 . 19 . 6 . . 7 . 2 . 16 . 2 1 Successful 104 | . 3 . 5 1 3 . 1 2 1 3 1 . 2 1 1 15 7 . 8 1 1 23 . 8 . 4 . . 7 . 1 . 3 . 2 . Failed 98 | . 5 . 8 . . . . 6 . 7 2 4 6 1 4 15 8 . 4 . . . . 11 . 2 . . . . 1 . 13 . . 1 Catastrophic 26 | . . . 1 . . . . 2 . 1 . . 2 . . 4 5 . 1 . . . . 3 . . . . . . . . 6 . . 1 Database Lockouts . | . . . . . . . . . . . . . . . . . . . . . . . . . . . . . . . . . . . . . Manual 50 | . 7 . 12 . 1 . . 1 . 1 1 . 3 . . 10 4 . 1 . . . . 6 . 1 . . 1 . . . 1 . . . Terminals 117 | . 8 . 13 . . . . 8 . 10 2 4 8 . 5 10 12 . 5 . . . . 15 . 4 . . . . 2 . 10 . . 1 Fabricators 28 | . . . . . . . . . . . . . . . . 15 2 . 6 . . . . . . . . . . . . . 3 . 2 . Repair Stations . | . . . . . . . . . . . . . . . . . . . . . . . . . . . . . . . . . . . . . Recycling Units 11 | . . . . . . . . . . . . . . . . 2 1 . 1 . . . . 2 . 2 . . . . . . 3 . . . Scanalyzers . | . . . . . . . . . . . . . . . . . . . . . . . . . . . . . . . . . . . . . Garrison Access 10 | . . . . . . . 1 . 1 . 1 . . 2 . 3 . . . . . . . 2 . . . . . . . . . . . . Terminal Hacks 67 | . . . 2 1 3 . . 2 . 3 . . 2 . 1 2 4 . 3 1 1 23 . 7 . 3 . . 7 . 1 . 1 . . . Record 14 | . . . . . 2 . . . . . . . . . . . . . . . . 6 . . . . . . 6 . . . . . . . Part Schematic 9 | . . . . . . . . . . . . . . . . . . . . . . 9 . . . . . . . . . . . . . . Robot Schematic 6 | . . . . . . . . . . . . . . . . . 1 . . . . 5 . . . . . . . . . . . . . . Robot Analysis 1 | . . . . . . . . . . . . . . . . . . . . . . . . 1 . . . . . . . . . . . . Prototype ID Bank 3 | . . . . . . . . . . . . . . . . . . . . . . 3 . . . . . . . . . . . . . . Open Door 6 | . . . . 1 . . . . . 1 . . . . 1 . . . . 1 1 . . . . . . . 1 . . . . . . . Open DSF 1 | . . . . . . . . . . . . . . . . . . . . . . . . . . . . . . . 1 . . . . . Level Access Points 2 | . . . . . . . . . . . . . . . . . . . 1 . . . . 1 . . . . . . . . . . . . Branch Access Points 5 | . . . 1 . . . . . . . . . 1 . . . 1 . . . . . . 1 . 1 . . . . . . . . . . Emergency Access Points 2 | . . . . . . . . . . 1 . . . . . 1 . . . . . . . . . . . . . . . . . . . . Terminal Index 2 | . . . . . . . . . . . . . . . . . . . 1 . . . . 1 . . . . . . . . . . . . Alert Level 2 | . . . . . . . . . . . . . . . . . 1 . . . . . . 1 . . . . . . . . . . . . Unreport Threat 1 | . . . . . . . . . . . . . 1 . . . . . . . . . . . . . . . . . . . . . . . Locate Traps 1 | . . . . . . . . . . . . . . . . 1 . . . . . . . . . . . . . . . . . . . . Hauler Manifests 1 | . . . . . . . . . . . . . . . . . . . 1 . . . . . . . . . . . . . . . . . Registered Components 1 | . . . . . . . . . . . . . . . . . . . . . . . . 1 . . . . . . . . . . . . Registered Prototypes 1 | . . . . . . . . . . . . . . . . . . . . . . . . . . 1 . . . . . . . . . . Zone Layout 5 | . . . 1 . . . . . . . . . . . . . 1 . . . . . . 1 . 1 . . . . . . 1 . . . Garrison Registry 1 | . . . . . . . . 1 . . . . . . . . . . . . . . . . . . . . . . . . . . . . Patrol Navigation 1 | . . . . . . . . . . 1 . . . . . . . . . . . . . . . . . . . . . . . . . . Security Stations 1 | . . . . . . . . 1 . . . . . . . . . . . . . . . . . . . . . . . . . . . . Proto ID Catalog 1 | . . . . . 1 . . . . . . . . . . . . . . . . . . . . . . . . . . . . . . . Fabricator Hacks 17 | . . . . . . . . . . . . . . . . 9 1 . 3 . . . . . . . . . . . . . 2 . 2 . Network Status 1 | . . . . . . . . . . . . . . . . 1 . . . . . . . . . . . . . . . . . . . . Load Schematic 8 | . . . . . . . . . . . . . . . . 4 . . 2 . . . . . . . . . . . . . 1 . 1 . Build 8 | . . . . . . . . . . . . . . . . 4 1 . 1 . . . . . . . . . . . . . 1 . 1 . Repair Station Hacks . | . . . . . . . . . . . . . . . . . . . . . . . . . . . . . . . . . . . . . Recycling Unit Hacks 4 | . . . . . . . . . . . . . . . . . 1 . 1 . . . . 1 . 1 . . . . . . . . . . Retrieve Components 4 | . . . . . . . . . . . . . . . . . 1 . 1 . . . . 1 . 1 . . . . . . . . . . Scanalyzer . | . . . . . . . . . . . . . . . . . . . . . . . . . . . . . . . . . . . . . Garrison Access Hacks 5 | . . . . . . . 1 . 1 . 1 . . 1 . 1 . . . . . . . . . . . . . . . . . . . . Unlock Access 5 | . . . . . . . 1 . 1 . 1 . . 1 . 1 . . . . . . . . . . . . . . . . . . . . Unauthorized Hacks 11 | . 3 . 3 . . . . . . . . . . . . 3 1 . 1 . . . . . . . . . . . . . . . . . Terminals 6 | . 3 . 3 . . . . . . . . . . . . . . . . . . . . . . . . . . . . . . . . . Botnet 3 | . 1 . 2 . . . . . . . . . . . . . . . . . . . . . . . . . . . . . . . . . Skim 3 | . 2 . 1 . . . . . . . . . . . . . . . . . . . . . . . . . . . . . . . . . Fabricators 5 | . . . . . . . . . . . . . . . . 3 1 . 1 . . . . . . . . . . . . . . . . . Liberate 2 | . . . . . . . . . . . . . . . . 2 . . . . . . . . . . . . . . . . . . . . Download 2 | . . . . . . . . . . . . . . . . 1 1 . . . . . . . . . . . . . . . . . . . Recompile 1 | . . . . . . . . . . . . . . . . . . . 1 . . . . . . . . . . . . . . . . . Repair Stations . | . . . . . . . . . . . . . . . . . . . . . . . . . . . . . . . . . . . . . Recycling Units . | . . . . . . . . . . . . . . . . . . . . . . . . . . . . . . . . . . . . . Scanalyzers . | . . . . . . . . . . . . . . . . . . . . . . . . . . . . . . . . . . . . . Garrison Access . | . . . . . . . . . . . . . . . . . . . . . . . . . . . . . . . . . . . . . Data Cores Recovered 3 | . 1 . 1 . . . . . . . . . . . . . . . . . . . . . . . . . . . . . 1 . . . Used . | . . . . . . . . . . . . . . . . . . . . . . . . . . . . . . . . . . . . . Hacking Detections 59 | . 3 . 4 . . . . 3 . 4 2 2 2 1 2 9 5 . 5 . . . . 7 . 2 . . . . . . 7 . . 1 Full Trace Events 3 | . . . . . . . . 1 . 1 . . . . . 1 . . . . . . . . . . . . . . . . . . . . Feedback Events . | . . . . . . . . . . . . . . . . . . . . . . . . . . . . . . . . . . . . . Feedback Blocked . | . . . . . . . . . . . . . . . . . . . . . . . . . . . . . . . . . . . . . Robot Schematics Acquired 8 | . . . . . . . . . . . . . . . . 1 2 . . . . 5 . . . . . . . . . . . . . . Robots Built 17 | . . . . . . . . . . . . . . . . 11 . . 2 . . . . . . . . . . . . . . . 4 . Authchips 7 | . . . . . . . . . . . . . . . . 4 . . 1 . . . . . . . . . . . . . 1 . 1 . Time 400 | . . . . . . . . . . . . . . . . 268 . . 44 . . . . . . . . . . . . . 44 . 44 . Total Robot Build Rating 68 | . . . . . . . . . . . . . . . . 44 . . 8 . . . . . . . . . . . . . . . 16 . Part Schematics Acquired 9 | . . . . . . . . . . . . . . . . . . . . . . 9 . . . . . . . . . . . . . . Parts Built 2 | . . . . . . . . . . . . . . . . . 2 . . . . . . . . . . . . . . . . . . . Authchips . | . . . . . . . . . . . . . . . . . . . . . . . . . . . . . . . . . . . . . Time 58 | . . . . . . . . . . . . . . . . . 58 . . . . . . . . . . . . . . . . . . . Total Part Build Rating 14 | . . . . . . . . . . . . . . . . . 14 . . . . . . . . . . . . . . . . . . . Parts Repaired . | . . . . . . . . . . . . . . . . . . . . . . . . . . . . . . . . . . . . . Time . | . . . . . . . . . . . . . . . . . . . . . . . . . . . . . . . . . . . . . Parts Recycled . | . . . . . . . . . . . . . . . . . . . . . . . . . . . . . . . . . . . . . Recycled Matter . | . . . . . . . . . . . . . . . . . . . . . . . . . . . . . . . . . . . . . Retrieved Matter . | . . . . . . . . . . . . . . . . . . . . . . . . . . . . . . . . . . . . . Retrieved Components 8 | . . . . . . . . . . . . . . . . . 3 . 1 . . . . 3 . 1 . . . . . . . . . . Parts Scanalyzed . | . . . . . . . . . . . . . . . . . . . . . . . . . . . . . . . . . . . . . Part Schematics Acquired . | . . . . . . . . . . . . . . . . . . . . . . . . . . . . . . . . . . . . . Parts Damaged . | . . . . . . . . . . . . . . . . . . . . . . . . . . . . . . . . . . . . . Bothacking | -11 -10 -10 -9 -9 -9 -8 -8 -8 -8 -8 -8 -8 -8 -7 -7 -7 -6 -6 -6 -6 -6 -6 -5 -5 -5 -5 -5 -5 -5 -4 -4 -4 -3 -2 -1 -1 ------------ Run | Yrd Mat Min Mat Min Exi Min Mat Gar Mat Gar Mat Gar Mat Fac Gar Fac Fac Was Fac Low Low Dat Pro Fac Was Fac Upp Upp War Pro Fac DSF Res Res Acc Com Used RIF Installer . | . . . . . . . . . . . . . . . . . . . . . . . . . . . . . . . . . . . . . Robots Hacked 3 | . . . . . . . . . . . . . . . . . . . . . . . . 1 . . . . 2 . . . . . . . Non-combat 3 | . . . . . . . . . . . . . . . . . . . . . . . . 1 . . . . 2 . . . . . . . Combat . | . . . . . . . . . . . . . . . . . . . . . . . . . . . . . . . . . . . . . Robot Hacks Applied 3 | . . . . . . . . . . . . . . . . . . . . . . . . 1 . . . . 2 . . . . . . . parse_system 2 | . . . . . . . . . . . . . . . . . . . . . . . . . . . . . 2 . . . . . . . find_chute 1 | . . . . . . . . . . . . . . . . . . . . . . . . 1 . . . . . . . . . . . . Relay Couplers Released 72 | . . . . . . . . 16 . 19 . 12 . . 17 3 . . . . . . . . . . . . . . . . . 4 1 . Machine Destruction 72 | . . . . . . . . 16 . 19 . 12 . . 17 3 . . . . . . . . . . . . . . . . . 4 1 . Fabnet Peak Effective % . | . . . . . . . . . . . . . . . . . . . . . . . . . . . . . . . . . . . . . Robots Rewired 21 | . . . . . . . . 6 . 6 . 6 . . . . . . . . . . . . . . . . 3 . . . . . . . Allies Hacked 1 | . . . . . . . . . . 1 . . . . . . . . . . . . . . . . . . . . . . . . . . Hacks Repelled 1 | . . . . . . . . . . . . . . . . . . . . . . . . . . . . . 1 . . . . . . . Allies | -11 -10 -10 -9 -9 -9 -8 -8 -8 -8 -8 -8 -8 -8 -7 -7 -7 -6 -6 -6 -6 -6 -6 -5 -5 -5 -5 -5 -5 -5 -4 -4 -4 -3 -2 -1 -1 -------- Run | Yrd Mat Min Mat Min Exi Min Mat Gar Mat Gar Mat Gar Mat Fac Gar Fac Fac Was Fac Low Low Dat Pro Fac Was Fac Upp Upp War Pro Fac DSF Res Res Acc Com Total Allies 47 | . . . . 3 . . . 6 . 6 . 6 . . 2 14 . . 2 . . . . . 1 . . . 3 . . . . . 4 . Largest Group 14 | . . . . 3 1 1 1 2 4 3 1 6 2 . 2 14 . . 2 . . . . . 1 . . . 3 . . . . . 4 . Highest-Rated Group 287 | . . . . 40 16 16 16 78 111 87 39 96 27 . 62 287 . . 80 . . . . . 31 . . . 192 . . . . . 48 . Highest-Rated Ally 64 | . . . . 16 16 16 16 39 39 39 39 16 16 . 31 31 . . 40 . . . . . 31 . . . 64 . . . . . 12 . Initial Warlord ECA Mod 868 | . . . . . . . . . 8 8 18 18 28 27 27 36 35 35 35 35 35 35 34 34 33 33 33 33 33 32 32 32 41 40 39 39 Warlord Squad Rendezvous 1 | . . . . . . . . . . . . . . . . . . . . . . . . 1 . . . . . . . . . . . . Muscle 1 | . . . . . . . . . . . . . . . . . . . . . . . . 1 . . . . . . . . . . . . Total Orders . | . . . . . . . . . . . . . . . . . . . . . . . . . . . . . . . . . . . . . Ally Attacks 336 | . . . . 13 . 11 3 40 15 42 28 45 5 . 14 85 . . 10 . . . . . 3 . . . . . . . . . 22 . Total Damage 5112 | . . . . 167 . 114 49 769 342 442 254 543 60 . 248 1512 . . 333 . . . . . 43 . . . . . . . . . 236 . Kills 70 | . . . . 3 . 5 . 13 6 10 3 6 1 . 4 15 . . 3 . . . . . . . . . . . . . . . 1 . Allies Corrupted 1 | . . . . 1 . . . . . . . . . . . . . . . . . . . . . . . . . . . . . . . . Allies Melted 1 | . . . . . . . . . . . . . . . . . . . . . . . . . . . . . . . . . . 1 . . Intel | -11 -10 -10 -9 -9 -9 -8 -8 -8 -8 -8 -8 -8 -8 -7 -7 -7 -6 -6 -6 -6 -6 -6 -5 -5 -5 -5 -5 -5 -5 -4 -4 -4 -3 -2 -1 -1 ------- Run | Yrd Mat Min Mat Min Exi Min Mat Gar Mat Gar Mat Gar Mat Fac Gar Fac Fac Was Fac Low Low Dat Pro Fac Was Fac Upp Upp War Pro Fac DSF Res Res Acc Com Active Infowar (turns) 3804 | . 470 294 143 . . . . . . . 1 . . 263 . 25 188 105 608 6 24 . . 232 24 86 113 92 84 . . . 1046 . . . Optics 1050 | . . . 143 . . . . . . . . . . . . . 188 105 608 6 . . . . . . . . . . . . . . . . Sensors 2182 | . . . . . . . . . . . . . . 263 . . . 10 528 6 . . . 232 24 73 . . . . . . 1046 . . . Traps 1 | . . . . . . . . . . . 1 . . . . . . . . . . . . . . . . . . . . . . . . . Seismic 764 | . 470 294 . . . . . . . . . . . . . . . . . . . . . . . . . . . . . . . . . . T.N.C. 25 | . . . . . . . . . . . . . . . . 25 . . . . . . . . . . . . . . . . . . . . Cloaking 235 | . . . . . . . . . . . . . . . . . 81 10 144 . . . . . . . . . . . . . . . . . Jamming 327 | . . . . . . . . . . . . . . . . . . . . . . . . . . 38 113 92 84 . . . . . . . ECM 24 | . . . . . . . . . . . . . . . . . . . . . 24 . . . . . . . . . . . . . . . Robot Analysis Total 1 | . . . . . . . . . . . . . . . . . . . . . . . . 1 . . . . . . . . . . . . Derelict Logs Recovered 8 | . . . . 1 . . . . . . . . . . . . . . . 2 2 . 1 . . . 1 1 . . . . . . . . Drone Launches . | . . . . . . . . . . . . . . . . . . . . . . . . . . . . . . . . . . . . . Drone Recoveries . | . . . . . . . . . . . . . . . . . . . . . . . . . . . . . . . . . . . . . Exploration | -11 -10 -10 -9 -9 -9 -8 -8 -8 -8 -8 -8 -8 -8 -7 -7 -7 -6 -6 -6 -6 -6 -6 -5 -5 -5 -5 -5 -5 -5 -4 -4 -4 -3 -2 -1 -1 ------------- Run | Yrd Mat Min Mat Min Exi Min Mat Gar Mat Gar Mat Gar Mat Fac Gar Fac Fac Was Fac Low Low Dat Pro Fac Was Fac Upp Upp War Pro Fac DSF Res Res Acc Com Turns Passed 24421 | 118 470 364 788 838 522 1081 463 2279 60 2540 965 1804 1104 281 1790 1468 978 105 608 160 137 23 79 265 24 86 113 92 1126 303 5 355 1178 1150 456 243 Spaces Moved 15727 | 65 257 182 357 492 313 657 156 778 20 832 348 605 350 162 855 794 795 243 1031 312 305 77 182 597 81 208 338 273 1548 207 5 168 811 937 262 124 Core 206 | 23 . . . . . . . . . . . . . . . 16 146 . . . . . . . . . . . . . . . 13 . . 8 Treads 6061 | 42 257 182 357 492 313 657 126 778 20 832 348 605 318 . . 6 175 . . . . . . . . . . . . . . 54 . 139 262 98 Legs 2487 | . . . . . . . . . . . . . . . . . 213 . . . . . . . . . . . 553 207 5 114 702 693 . . Wheels 1989 | . . . . . . . 30 . . . . . 32 162 855 772 . . 138 . . . . . . . . . . . . . . . . . Hover . | . . . . . . . . . . . . . . . . . . . . . . . . . . . . . . . . . . . . . Flight 4984 | . . . . . . . . . . . . . . . . . 261 243 893 312 305 77 182 597 81 208 338 273 995 . . . 96 105 . 18 Fastest Speed 23 | 50 160 160 160 160 160 160 230 240 240 240 240 240 225 128 120 50 26 32 26 26 26 29 26 23 25 25 27 27 27 110 110 100 37 34 135 32 Average Speed 120 | 121 160 160 161 160 160 160 242 240 240 240 240 241 237 128 136 131 80 32 37 28 32 29 26 23 25 25 27 27 55 110 110 124 115 105 135 114 Slowest Speed 320 | 160 160 160 240 160 160 160 320 240 240 240 240 320 318 170 220 240 180 35 110 91 91 29 29 93 25 27 98 27 112 112 110 250 190 215 135 135 Overloaded Moves 18 | . . . . . . . . . . . . . . . . . . . . . . . . . . . . . . . . . . . . 18 Propulsion Burnouts . | . . . . . . . . . . . . . . . . . . . . . . . . . . . . . . . . . . . . . Robots Hopped 20 | . . . . . . . . . . . . . . . . . . 4 2 . . . . . . . . . 14 . . . . . . . Potential Cave-ins . | . . . . . . . . . . . . . . . . . . . . . . . . . . . . . . . . . . . . . Cave-ins Triggered . | . . . . . . . . . . . . . . . . . . . . . . . . . . . . . . . . . . . . . Exploration Rate (%) 46 | 5 45 36 33 79 68 98 12 91 5 96 42 76 37 3 74 22 22 95 26 43 55 68 47 18 72 8 60 52 90 43 . 94 27 27 8 10 Regions Visited 36 Branch Regions 13 Pre-discovered Areas 4 | . . . . . 1 . . . . . . . . . . . . . . 1 1 1 . . . . . . . . . . . . . . Known Exits Taken 15 | . . . 1 . . . 1 . 1 . 1 . . 1 . . . . 1 1 . . 1 . . 1 1 1 . 1 1 . 1 . 1 . Unknown Exits Taken 12 | 1 1 1 . 1 1 1 . . . . . . 1 . . 1 . . . . 1 1 . . . . . . 1 . . . . 1 . . Scrap Searched 10 | . . . . . . 3 . . . . . . . . . . . . . 2 3 . . . . . . . . 2 . . . . . . Spaces Dug 56 | . . . . . . . . 2 . . . 2 . . . . . . 5 . . . . 6 . . 29 . 12 . . . . . . . Terrain Destroyed 1656 | . 7 6 26 . . . . 36 . 75 25 340 214 . 122 43 . . 25 129 43 . 33 6 . . 77 90 13 32 . 15 129 16 124 30 Melee 11 | . . . . . . . . . . . . . . . . . . . 5 . . . . 6 . . . . . . . . . . . . Projectile 92 | . . . . . . . . 1 . 3 2 4 . . 3 27 . . . . . . . . . . . . 2 9 . . . 16 11 14 AOE 1553 | . 7 6 26 . . . . 35 . 72 23 336 214 . 119 16 . . 20 129 43 . 33 . . . 77 90 11 23 . 15 129 . 113 16 Terrain Rammed . | . . . . . . . . . . . . . . . . . . . . . . . . . . . . . . . . . . . . . Walls Destroyed . | . . . . . . . . . . . . . . . . . . . . . . . . . . . . . . . . . . . . . Machines Disabled . | . . . . . . . . . . . . . . . . . . . . . . . . . . . . . . . . . . . . . Actions | -11 -10 -10 -9 -9 -9 -8 -8 -8 -8 -8 -8 -8 -8 -7 -7 -7 -6 -6 -6 -6 -6 -6 -5 -5 -5 -5 -5 -5 -5 -4 -4 -4 -3 -2 -1 -1 --------- Run | Yrd Mat Min Mat Min Exi Min Mat Gar Mat Gar Mat Gar Mat Fac Gar Fac Fac Was Fac Low Low Dat Pro Fac Was Fac Upp Upp War Pro Fac DSF Res Res Acc Com Total 19665 | 90 300 213 483 523 336 674 212 1103 32 1255 427 817 557 218 1270 1190 1077 263 1188 368 337 76 200 702 83 227 349 282 1762 244 4 268 979 1061 310 185 Wait 1400 | . . . 17 5 10 2 1 88 12 201 11 65 86 21 100 316 148 9 48 23 . . 5 44 3 . . . 96 . . . 49 19 8 13 Move 15662 | 64 256 181 356 491 312 656 156 777 20 831 348 604 349 161 853 793 795 234 1026 311 304 76 181 597 80 207 337 272 1526 206 4 167 810 936 261 124 Hop 13 | . . . . . . . . . . . . . . . . . . 4 2 . . . . . . . . . 7 . . . . . . . Pick Up 331 | 12 12 4 14 2 6 1 17 21 . 12 13 10 21 10 20 15 29 3 18 5 6 . 1 13 . . . 1 19 1 . 9 8 22 2 4 Fast Attach 143 | 3 1 . 9 . . . . . . 2 2 . 8 . 2 . 19 2 11 4 5 . . 3 . 4 . . 17 . . 16 8 24 3 . Attach 202 | 4 4 3 4 . . 2 3 4 . 5 3 4 11 6 16 24 18 2 9 6 5 . 3 10 . . 3 2 13 2 . 5 14 9 2 6 Detach 50 | . . . . 2 . . . . . . . 2 1 . 5 2 4 1 6 2 1 . 1 5 . 1 3 1 4 . . 1 4 3 . 1 Swap 127 | 1 2 1 3 . 2 2 5 17 . 12 7 8 5 1 11 4 7 1 5 3 6 . . 4 . 3 . . 5 1 . 2 1 6 1 1 Drop 317 | . 14 2 9 4 6 1 4 17 . 15 13 10 26 6 17 14 26 5 19 5 8 . . 6 . 4 . . 34 . . 16 9 24 1 2 Fire 1021 | 6 11 22 71 19 . 10 26 86 . 86 30 103 50 8 166 22 25 . 1 5 2 . 2 2 . . 6 6 41 34 . 46 64 18 32 21 Melee 86 | . . . . . . . . . . . . . . . . . 4 2 43 4 . . 7 18 . 8 . . . . . . . . . . Ram 5 | . . . . . . . . . . . . . . 5 . . . . . . . . . . . . . . . . . . . . . . Kick 14 | . . . . . . . . . . . . . . . . . 2 . . . . . . . . . . . . . . . 12 . . . Crush . | . . . . . . . . . . . . . . . . . . . . . . . . . . . . . . . . . . . . . Escape Stasis 128 | . . . . . . . . 12 . 6 . 11 . . 80 . . . . . . . . . . . . . . . . 6 . . . 13 Rewire 164 | . . . . . . . . 79 . 85 . . . . . . . . . . . . . . . . . . . . . . . . . . Trap 2 | . . . . . . . . 2 . . . . . . . . . . . . . . . . . . . . . . . . . . . . Miscellaneous . | . . . . . . . . . . . . . . . . . . . . . . . . . . . . . . . . . . . . . Route ------- -11/Scrapyard -10/Materials (discovered 2 exits: *Mat / [*Min]) -10/Mines -9/Materials (discovered 3 exits: *Min x2 / Sto) -9/Mines (discovered 3 exits: *Mat x2 / *Exi) -9/Exiles -8/Mines (discovered 2 exits: *Mat x2) -8/Materials -8/Garrison (discovered 4 exits: *Mat x4) -8/Materials -8/Garrison (discovered 4 exits: *Fac x3 / *Mat) -8/Materials -8/Garrison -8/Materials -7/Factory -7/Garrison (discovered 3 exits: *Fac x3) -7/Factory (discovered 2 exits: *Fac / [*Low]) -6/Factory (discovered 2 exits: *Low x2) -6/Waste -6/Factory (discovered 5 exits: *Fac x4 / *Low) -6/Lower Caves -6/Lower Caves -6/Data Miner -5/Proximity Caves -5/Factory (discovered 6 exits: Fac x4 / Upp x2) -5/Waste -5/Factory (discovered 2 exits: *Upp x2) -5/Upper Caves -5/Upper Caves (discovered 2 exits: *Fac / *War) -5/Warlord -4/Proximity Caves -4/Factory -4/DSF -3/Research (discovered 2 exits: *Res x2) -2/Research -1/Access -1/Command History --------- Turn | Location | Event 10 | -11/Scrapyard | Discovered new exit (range 16) 119 | -11/Scrapyard | Entered Materials 307 | -10/Materials | Build established: Mutant 383 | -10/Materials | Discovered new exit (range 3) 491 | -10/Materials | Discovered new exit (range 6) 589 | -10/Materials | Entered Mines 640 | -10/Mines | Assembled infested the area 844 | -10/Mines | Discovered new exit (range 11) 914 | -10/Mines | Lost 4 parts (1n1u2w) 914 | -10/Mines | Found a damaged Exp. Sensor Array with a note attached 917 | -10/Mines | Found Prototype Device 953 | -10/Mines | Entered Materials 953 | -9/Materials | Evolved 2 slots: Utility x2 1018 | -9/Materials | Identified Exp. Sensor Array 1093 | -9/Materials | Identified exit to Mines 1093 | -9/Materials | Identified exit to Storage 1479 | -9/Materials | Lost 3 parts (1p1n1u) 1741 | -9/Materials | Entered Mines 1815 | -9/Mines | Deemed a non-threat by the Exiles lab entrance 1875 | -9/Mines | Assisted by bots powering up and referring to "LRC-V3" 1905 | -9/Mines | Discovered new exit (range 9) 1960 | -9/Mines | Build established: Scavenger-Mutant 2198 | -9/Mines | Met a Derelict who couldn't figure out how to use a Trap Extractor 2378 | -9/Mines | A weapon hastily lodged in a ceiling crevice suddenly fell to the ground 2426 | -9/Mines | Discovered new exit (range 10) 2571 | -9/Mines | Discovered new exit (range 5) 2579 | -9/Mines | Entered Exiles 2579 | -9/Exiles | Accompanied by 1 ally 2632 | -9/Exiles | Met 8R-AWN 2659 | -9/Exiles | Met EX-HEX 2720 | -9/Exiles | Met EX-DEC 2745 | -9/Exiles | Learned location of Zion (-7) 2849 | -9/Exiles | Met EX-BIN 2872 | -9/Exiles | Aligned with FarCom system 2873 | -9/Exiles | Given EX-Vault access code 2912 | -9/Exiles | Opened EX-Vault 2924 | -9/Exiles | Found Trap Reconfigurator 2935 | -9/Exiles | Found PSU Rigger 2939 | -9/Exiles | Found Superbattery 2972 | -9/Exiles | Warned to stay clear of 0b10 Research branches 3073 | -9/Exiles | Discovered new exit (range 12) 3101 | -9/Exiles | Stole three prototypes: Superbattery, Trap Reconfigurator, PSU Rigger 3101 | -9/Exiles | Entered Mines 3101 | -8/Mines | Accompanied by 1 ally 3257 | -8/Mines | Discovered new exit (range 5) 3347 | -8/Mines | Discovered new exit (range 9) 4182 | -8/Mines | Entered Materials 4182 | -8/Materials | Accompanied by 1 ally 4182 | -8/Materials | Evolved 2 slots: Propulsion x1, Weapon x1 4474 | -8/Materials | Build established: Scavenger-Tank 4645 | -8/Materials | Identified exit to Garrison 4645 | -8/Materials | Entered Garrison 4691 | -8/Garrison | Learned Materials security intel 4711 | -8/Garrison | Triggered checkpoint 4734 | -8/Garrison | Garrison Relay disabled 4918 | -8/Garrison | Triggered checkpoint 5187 | -8/Garrison | Triggered checkpoint 5295 | -8/Garrison | Triggered checkpoint 5338 | -8/Garrison | Garrison Relay disabled 5559 | -8/Garrison | Discovered new exit (range 8) 5725 | -8/Garrison | Build established: Tank 5759 | -8/Garrison | Triggered checkpoint 5795 | -8/Garrison | Garrison Relay disabled 5915 | -8/Garrison | Discovered new exit (range 8) 6013 | -8/Garrison | Triggered checkpoint 6130 | -8/Garrison | Discovered new exit (range 9) 6245 | -8/Garrison | Triggered checkpoint 6277 | -8/Garrison | Garrison Relay disabled 6318 | -8/Garrison | Discovered new exit (range 30) 6318 | -8/Garrison | Discovered new exit (range 63) 6318 | -8/Garrison | Discovered new exit (range 26) 6318 | -8/Garrison | Discovered new exit (range 24) 6823 | -8/Garrison | Triggered checkpoint 6864 | -8/Garrison | Build established: Scavenger-Tank 6924 | -8/Garrison | Entered Materials 6924 | -8/Materials | Accompanied by 4 allies 6984 | -8/Materials | Identified exit to Garrison 6984 | -8/Materials | Entered Garrison 6984 | -8/Garrison | Accompanied by 3 allies 7034 | -8/Garrison | Triggered checkpoint 7085 | -8/Garrison | Garrison Relay disabled 7329 | -8/Garrison | Phase Generator disabled 7590 | -8/Garrison | Triggered checkpoint 7752 | -8/Garrison | Garrison Relay disabled 7814 | -8/Garrison | Garrison Relay disabled 7894 | -8/Garrison | Discovered new exit (range 8) 8173 | -8/Garrison | Build established: Scavenger-Skirmisher 8232 | -8/Garrison | Triggered checkpoint 8251 | -8/Garrison | Triggered checkpoint 8508 | -8/Garrison | Discovered new exit (range 5) 8522 | -8/Garrison | Triggered checkpoint 8547 | -8/Garrison | Discovered new exit (range 3) 8653 | -8/Garrison | Build established: Scavenger-Mutant 8694 | -8/Garrison | Triggered checkpoint 8733 | -8/Garrison | Garrison Relay disabled 8975 | -8/Garrison | Triggered checkpoint 9080 | -8/Garrison | Garrison Relay disabled 9247 | -8/Garrison | Discovered new exit (range 13) 9330 | -8/Garrison | Triggered checkpoint 9524 | -8/Garrison | Entered Materials 9524 | -8/Materials | Accompanied by 1 ally 9651 | -8/Materials | Build established: Scavenger-Skirmisher 10324 | -8/Materials | First assault squad dispatched 10412 | -8/Materials | Build established: Scavenger-Tank 10489 | -8/Materials | Identified exit to Garrison 10489 | -8/Materials | Entered Garrison 10525 | -8/Garrison | Triggered checkpoint 10608 | -8/Garrison | Garrison Relay disabled 10717 | -8/Garrison | Core integrity fell below 50% 10780 | -8/Garrison | Phase Generator disabled 10892 | -8/Garrison | Triggered checkpoint 10892 | -8/Garrison | Triggered checkpoint 10931 | -8/Garrison | Destroyed 9 combat bots 11007 | -8/Garrison | Discovered new exit (range 14) 11171 | -8/Garrison | Triggered checkpoint 11188 | -8/Garrison | Build established: Scavenger-Mutant 11307 | -8/Garrison | Garrison Relay disabled 11448 | -8/Garrison | Triggered checkpoint 11475 | -8/Garrison | Triggered checkpoint 11644 | -8/Garrison | Garrison Relay disabled 11745 | -8/Garrison | Triggered checkpoint 11923 | -8/Garrison | Triggered checkpoint 12293 | -8/Garrison | Entered Materials 12293 | -8/Materials | Accompanied by 2 allies 12693 | -8/Materials | First assault squad dispatched 12752 | -8/Materials | Build established: Scavenger-Tank 12981 | -8/Materials | Core integrity fell below 20% 13242 | -8/Materials | Discovered new exit (range 9) 13258 | -8/Materials | Destroyed 8 combat bots 13304 | -8/Materials | System corruption reached 10% 13347 | -8/Materials | Lost 3 parts (1n2w) 13397 | -8/Materials | Entered Factory 13397 | -7/Factory | Evolved 2 slots: Utility x2 13399 | -7/Factory | FarCom data flow suspended 13450 | -7/Factory | Identified exit to Garrison 13664 | -7/Factory | Garrison activated, responded to threat 13678 | -7/Factory | Entered Garrison 13696 | -7/Garrison | Triggered checkpoint 13781 | -7/Garrison | Garrison Relay disabled 13782 | -7/Garrison | Triggered checkpoint 13994 | -7/Garrison | Triggered checkpoint 13998 | -7/Garrison | Triggered checkpoint 14003 | -7/Garrison | Triggered checkpoint 14047 | -7/Garrison | Destroyed 10 combat bots 14156 | -7/Garrison | Triggered checkpoint 14168 | -7/Garrison | Garrison Relay disabled 14272 | -7/Garrison | Triggered checkpoint 14298 | -7/Garrison | Garrison Relay disabled 14353 | -7/Garrison | Discovered new exit (range 8) 14361 | -7/Garrison | Build established: Tank 14475 | -7/Garrison | Rescued a captive Derelict 14477 | -7/Garrison | Rescued a captive Derelict 14528 | -7/Garrison | Discovered new exit (range 10) 14558 | -7/Garrison | Triggered checkpoint 14588 | -7/Garrison | Garrison Relay disabled 14702 | -7/Garrison | Discovered new exit (range 13) 14825 | -7/Garrison | Phase Generator disabled 15364 | -7/Garrison | Attempted to access garrison exit controls, blocked by remote lockdown 15423 | -7/Garrison | Build established: Scavenger-Tank 15468 | -7/Garrison | Entered Factory 15468 | -7/Factory | Accompanied by 2 allies 15556 | -7/Factory | Found Powered Armor 15714 | -7/Factory | Fabricated B-48 Gladiator? 15802 | -7/Factory | Fabricated B-48 Gladiator? 15891 | -7/Factory | Fabricated B-48 Gladiator (x3) 15959 | -7/Factory | Fabricated B-48 Gladiator (x2) 16004 | -7/Factory | Identified exit to Garrison 16099 | -7/Factory | Garrison activated, responded to threat 16102 | -7/Factory | Build established: Commander-Tank 16239 | -7/Factory | Lost 7 allies 16446 | -7/Factory | Discovered new exit (range 16) 16852 | -7/Factory | Core integrity fell below 50% 16874 | -7/Factory | Cargo convoy interrupted 16924 | -7/Factory | Core integrity fell below 20% 16929 | -7/Factory | Released all parts (7) 16929 | -7/Factory | Discovered new exit (range 15) 16936 | -7/Factory | Entered another Factory area 16936 | -6/Factory | Evolved 2 slots: Propulsion x1, Utility x1 16959 | -6/Factory | Lost 10 parts (3n4u3w) 17085 | -6/Factory | Identified exit to Lower Caves 17166 | -6/Factory | Build established: Mutant 17281 | -6/Factory | Fabricated Adv. Target Analyzer (x2) 17286 | -6/Factory | First assault squad dispatched 17914 | -6/Factory | Sucked down chute 17914 | -6/Factory | Entered Waste 17914 | -6/Waste | The area was eerily silent 17926 | -6/Waste | Lost 3 parts (1p1u1w) 17988 | -6/Waste | Discovered new exit (range 13) 18019 | -6/Waste | Entered Factory 18138 | -6/Factory | Fabricated X-62 Marksman? 18287 | -6/Factory | Discovered exit to Lower Caves (range 4) 18358 | -6/Factory | Garrison activated, responded to threat 18369 | -6/Factory | Found Prototype Launcher 18370 | -6/Factory | Identified Rocket Array 18372 | -6/Factory | Found Rocket Array 18373 | -6/Factory | Found Rocket Array 18375 | -6/Factory | Found Rocket Array 18521 | -6/Factory | Identified exit to Factory 18627 | -6/Factory | Entered Lower Caves 18627 | -6/Lower Caves | Spotted MY-F0O(f) 18627 | -6/Lower Caves | Spotted B1-TU2(f) 18629 | -6/Lower Caves | Encountered a Master Thief 18629 | -6/Lower Caves | Encountered a Master Thief 18633 | -6/Lower Caves | Adv. Sensor Array stolen by Master Thief 18636 | -6/Lower Caves | Destroyed B1-TU2(f) 18640 | -6/Lower Caves | Met a Warlord Commander 18641 | -6/Lower Caves | Learned location of Warlord (-5) 18642 | -6/Lower Caves | Warlord Commander delivered Encrypted Comm Array 18643 | -6/Lower Caves | Found Encrypted Comm Array 18664 | -6/Lower Caves | Lost 4 parts (4u) 18685 | -6/Lower Caves | Identified exit to Lower Caves 18732 | -6/Lower Caves | Learned Factory terminal intel 18779 | -6/Lower Caves | Core integrity fell below 50% 18787 | -6/Lower Caves | Entered another Lower Caves area 18805 | -6/Lower Caves | Lost 3 parts (1p1u1w) 18806 | -6/Lower Caves | Learned 8 Factory zone layouts 18904 | -6/Lower Caves | Encountered a Warlord checkpoint 18913 | -6/Lower Caves | Spotted ES-6Q6(f) 18913 | -6/Lower Caves | Spotted 1P-3PL(f) 18913 | -6/Lower Caves | Spotted ZE-463(f) 18914 | -6/Lower Caves | Spotted VF-Y17(f) 18914 | -6/Lower Caves | Discovered new exit (range 12) 18914 | -6/Lower Caves | Destroyed ES-6Q6(f) 18915 | -6/Lower Caves | Encountered a Master Thief 18915 | -6/Lower Caves | Encountered a Master Thief 18915 | -6/Lower Caves | Encountered a Master Thief 18915 | -6/Lower Caves | Spotted S2-RQL(f) 18916 | -6/Lower Caves | Encountered a Master Thief 18917 | -6/Lower Caves | Nuclear Pulse Thruster stolen by Master Thief 18920 | -6/Lower Caves | Fission Core stolen by Master Thief 18921 | -6/Lower Caves | Energy Well stolen by Master Thief 18924 | -6/Lower Caves | Entered Data Miner 18924 | -6/Data Miner | Discovered new exit (range 6) 18930 | -6/Data Miner | Met Data Miner 18936 | -6/Data Miner | Learned location of Section 7 (-2) 18936 | -6/Data Miner | Acquired the access code to Warlord's prototype stash 18940 | -6/Data Miner | Received God Mode back door access code from Data Miner 18947 | -6/Data Miner | Entered Proximity Caves 19002 | -5/Proximity Caves | Lost 3 parts (1p2u) 19006 | -5/Proximity Caves | Learned Factory emergency access door positions 19015 | -5/Proximity Caves | Discovered exit to Factory (range 13) 19026 | -5/Proximity Caves | Entered Factory 19026 | -5/Factory | Evolved 2 slots: Propulsion x1, Utility x1 19029 | -5/Factory | Loaded intel: 26 terminal locations 19159 | -5/Factory | Identified exit to Factory 19167 | -5/Factory | Build established: Hacker-Sprinter 19180 | -5/Factory | Joined by Warlord Muscle squad 19234 | -5/Factory | Garrison activated, responded to threat 19245 | -5/Factory | Identified exit to Upper Caves 19291 | -5/Factory | Sucked down chute 19291 | -5/Factory | Entered Waste 19292 | -5/Waste | Met a frightened Derelict 19300 | -5/Waste | Spotted C-40 Crusher 19301 | -5/Waste | Spotted C-40 Crusher 19305 | -5/Waste | Spotted C-40 Crusher 19306 | -5/Waste | Spotted C-40 Crusher 19306 | -5/Waste | Spotted C-40 Crusher 19310 | -5/Waste | Spotted C-40 Crusher 19312 | -5/Waste | Discovered new exit (range 10) 19314 | -5/Waste | Identified exit to Factory 19315 | -5/Waste | Entered Factory 19401 | -5/Factory | Entered Upper Caves 19499 | -5/Upper Caves | Encountered a Warlord checkpoint 19509 | -5/Upper Caves | Identified exit to Upper Caves 19514 | -5/Upper Caves | Entered another Upper Caves area 19516 | -5/Upper Caves | Encountered a Warlord checkpoint 19516 | -5/Upper Caves | Discovered exit to Factory (range 14) 19516 | -5/Upper Caves | Learned Factory terminal intel 19570 | -5/Upper Caves | Destroyed 8 combat bots 19594 | -5/Upper Caves | Spotted KS-9PQ(f) 19594 | -5/Upper Caves | Spotted UB-FOU(f) 19594 | -5/Upper Caves | Spotted PK-4A2(f) 19595 | -5/Upper Caves | Encountered a Master Thief 19595 | -5/Upper Caves | Encountered a Master Thief 19595 | -5/Upper Caves | Encountered a Master Thief 19595 | -5/Upper Caves | Spotted AU-MAX(f) 19595 | -5/Upper Caves | Destroyed AU-MAX(f) 19595 | -5/Upper Caves | Destroyed UB-FOU(f) 19595 | -5/Upper Caves | Destroyed PK-4A2(f) 19596 | -5/Upper Caves | Imp. Energy Well stolen by Master Thief 19602 | -5/Upper Caves | Discovered new exit (range 12) 19606 | -5/Upper Caves | Identified exit to Warlord 19606 | -5/Upper Caves | Entered Warlord 19664 | -5/Warlord | Opened Warlord's prototype stash 19703 | -5/Warlord | Met Warlord 19715 | -5/Warlord | Learned Quarantine stockpile data 19716 | -5/Warlord | Learned 4 Armory zone layouts 19716 | -5/Warlord | Learned Armory security intel 19716 | -5/Warlord | Learned Armory terminal intel 19716 | -5/Warlord | Learned Armory repair station intel 19719 | -5/Warlord | Warlord's base attacked by MAIN.C 19730 | -5/Warlord | Found Prototype Energy Gun 19762 | -5/Warlord | Found Prototype Energy Gun 19765 | -5/Warlord | Found Prototype Launcher 19968 | -5/Warlord | Found Prototype Device 19969 | -5/Warlord | Identified Exp. Phase Shifter 19986 | -5/Warlord | Found Prototype Hackware 19991 | -5/Warlord | Found Prototype Processor 19992 | -5/Warlord | Identified Exp. Armor Integrity Analyzer 19994 | -5/Warlord | Found Prototype Device 20034 | -5/Warlord | Spotted B-86 Titan 20069 | -5/Warlord | Warlord forces counterattacked 20107 | -5/Warlord | Identified Thermal Barrier 20109 | -5/Warlord | Identified Vortex Shotgun (x2) 20111 | -5/Warlord | Identified Vortex Catalyst Activator 20112 | -5/Warlord | Found Prototype Reactor 20115 | -5/Warlord | Identified Ghost Barrier 20217 | -5/Warlord | Spotted Executioner 20245 | -5/Warlord | Spotted Striker 20256 | -5/Warlord | Lost 6 allies 20394 | -5/Warlord | Warlord base infiltrated, sounded retreat 20414 | -5/Warlord | Spotted Striker 20457 | -5/Warlord | Lost 4 allies 20502 | -5/Warlord | Spotted Striker 20537 | -5/Warlord | Lost 5 allies 20670 | -5/Warlord | Spotted Executioner 20673 | -5/Warlord | Spotted Executioner 20683 | -5/Warlord | Discovered new exit (range 16) 20696 | -5/Warlord | Found Prototype Launcher 20696 | -5/Warlord | Identified Chain Missile Launcher 20712 | -5/Warlord | Lost 7 allies 20719 | -5/Warlord | Spotted Executioner 20722 | -5/Warlord | Destroyed Executioner 20732 | -5/Warlord | Entered Proximity Caves 20743 | -4/Proximity Caves | Destroyed 7 combat bots 20758 | -4/Proximity Caves | Lost 4 allies 20804 | -4/Proximity Caves | Spotter reported a threat 20812 | -4/Proximity Caves | Spotter reported a threat 20865 | -4/Proximity Caves | Spotter reported a threat 21000 | -4/Proximity Caves | Spotter reported a threat 21025 | -4/Proximity Caves | Discovered exit to Factory (range 8) 21035 | -4/Proximity Caves | Entered Factory 21035 | -4/Factory | Evolved 2 slots: Power x1, Utility x1 21036 | -4/Factory | Loaded intel: 28 terminal locations 21040 | -4/Factory | Identified exit to DSF 21040 | -4/Factory | Entered DSF 21070 | -4/DSF | Additional patrols routed to DSF 21075 | -4/DSF | Build established: Hacker-Mutant 21213 | -4/DSF | Lost 6 parts (2p2n2u) 21303 | -4/DSF | Sterilization system engaged 21323 | -4/DSF | Ambient heat levels rising (+10) 21338 | -4/DSF | Ambient heat levels rising (+10) 21353 | -4/DSF | Ambient heat levels rising (+10) 21366 | -4/DSF | Identified Vortex Chain Reactor 21368 | -4/DSF | Ambient heat levels rising (+10) 21377 | -4/DSF | Discovered new exit (range 15) 21383 | -4/DSF | Ambient heat levels rising (+10) 21395 | -4/DSF | Entered Research 21395 | -3/Research | Evolved 2 slots: Propulsion x1, Utility x1 21673 | -3/Research | Discovered new exit (range 4) 21676 | -3/Research | Identified exit to Research 22053 | -3/Research | System corruption reached 10% 22067 | -3/Research | Destroyed 7 combat bots 22145 | -3/Research | First assault squad dispatched 22168 | -3/Research | Incoming assault squad redirected 22361 | -3/Research | Lost 4 parts (1n2u1w) 22524 | -3/Research | System corruption reached 30% 22526 | -3/Research | Released all parts (7) 22531 | -3/Research | Core integrity fell below 50% 22557 | -3/Research | Lost 8 parts (2p4n2u) 22570 | -3/Research | Core integrity fell below 20% 22571 | -3/Research | Discovered exit to Research (range 6) 22573 | -3/Research | Entered another Research area 22573 | -2/Research | Warlord forces began assault on 0b10 22573 | -2/Research | Evolved 2 slots: Utility x2 22598 | -2/Research | Distinguished unit "Golden Rifle" dispatched to help 22598 | -2/Research | Distinguished unit "The Professionals" dispatched to help 22613 | -2/Research | Spotted B-90 Cyclops 22683 | -2/Research | Research machine network offline 22684 | -2/Research | Lost 7 allies 23096 | -2/Research | Build established: Tank 23319 | -2/Research | Spotted RZ-9IW(L) 23364 | -2/Research | Lost 3 allies 23377 | -2/Research | Borebot progress halted 23391 | -2/Research | Met up with Warlord 23527 | -2/Research | Found Unknown Launcher 23534 | -2/Research | Found Unknown Launcher 23535 | -2/Research | Identified Fusion Bomb Launcher (x2) 23600 | -2/Research | Spotted Striker 23620 | -2/Research | Warlord invited to help at Command 23620 | -2/Research | Given Cave Seal Controls access code 23683 | -2/Research | Discovered new exit (range 11) 23723 | -2/Research | Entered Access 23723 | -1/Access | Evolved 2 slots: Utility x1, Weapon x1 23724 | -1/Access | Identified exit to Command 23834 | -1/Access | Fabricated S-27 Virus? 23867 | -1/Access | Lost 4 allies 23868 | -1/Access | Build established: Scavenger-Tank 23882 | -1/Access | Garrison activated, responded to threat 23925 | -1/Access | Lost 4 allies 24052 | -1/Access | Spotted B-99 Colossus 24054 | -1/Access | Spotted B-99 Colossus 24064 | -1/Access | Destroyed B-99 Colossus 24179 | -1/Access | Entered Command 24344 | -1/Command | Spotted Striker 24346 | -1/Command | Spotted Alpha 7 24359 | -1/Command | Spotted Executioner 24359 | -1/Command | Spotted Alpha 7 24366 | -1/Command | Destroyed Striker 24376 | -1/Command | Spotted Striker 24397 | -1/Command | Released all parts (7) 24405 | -1/Command | Core integrity fell below 50% 24406 | -1/Command | Spotted Executioner 24406 | -1/Command | Spotted Executioner 24406 | -1/Command | Spotted Executioner 24407 | -1/Command | Spotted B-99 Colossus 24418 | -1/Command | Core integrity fell below 20% 24421 | -1/Command | Spotted B-99 Colossus 24422 | -1/Command | Destroyed by Striker with Plasma Lance Last Messages --------------- 24418_ Field strength at 60. 24419_ Field strength at 54. 24420_ Penetrated by Slug. 24420_ Slug penetrates Wall. 24420_ Penetrated by Slug. 24420_ Slug penetrates Wall. 24420_ Field strength at 21. 24420_ Penetrated by Slug. 24420_ Stasis field depleted. 24420_ Slug penetrates Wall. 24420_ Slug penetrates Executioner. 24420_ Slug penetrates Wall. 24421_ Penetrated by Slug. 24422_ Wall collapses. 24422_ ALERT: Potential suspicious activity detected, Programmers report to Command Zone 3Z. 24422_ Triggered Stasis Trap. 24422_ A bubble of rippling energy engulfs the area. 24422_ Field strength at 94. 24422_ Field strength at 88. Map ----- +----------------------------------------------------+ | ???????????????????? # " = # # | | ????????????????????? # != # | | ??????????????????????? " * % # | | ???????????? ##+########= !]]!= # | | ???????????? # =% = # | | ???????????? # % # | | ??????????? # % % # | | ??????????? #### % # | | ?????????? # | | ???????????# % # # | | ???????????# # # | | ???????????# # ##"######### | | ???????????# ! ##?##???????? | | ???????????# ##???????????? | | ???????????+ "#???????????? | | ???????????# ##???????????? | | ???????????# ! #????????????? | | ???????????# ######### ""####"+###????????????? | | ?????????????????????# ###???" ??????????????? | | ????????????????????##+;++##????# ????????????? | | ????????????????????# ^ 7#????? ""???????????? | | ???????????????????## % %##????? ""????????????? | | ???????????????????# ^ #????????????????????? | | ???????????????????## ;#????????????????????? | | ???????????????????# K #????????????????????? | | ???????????????????##^ @^;#????????????????????? | | ???????????????????# ^ ^ E#????????????????????? | | ???????????????????##E^ E##????????????????????? | | ???????????????????# ?????????????????????? | | ???????????????????#; ##????????????????????? | | ?????????????????? BB B?????????????????????? | | ?????????????????# BB B?????????????????????? | | ?????????????????# ^ ????????????????????? | | ?????????????????# ^"""""" ????????????????????? | | ?????????????????# ?????? ????????????????????? | | ?????????????????# ??????? ???????????????????? | | ?????????????????# ??????? ???????????????????? | | ?????????????????# ???????? ???????????????????? | | ??????????????????????????? #??????????????????? | | ???????????????????????????? ???????????????????? | | ?????????????????????????????????????????????????? | | ?????????????????????????????????????????????????? | | ?????????????????????????????????????????????????? | | ?????????????????????????????????????????????????? | | ?????????????????????????????????????????????????? | | ?????????????????????????????????????????????????? | | ?????????????????????????????????????????????????? | | ?????????????????????????????????????????????????? | | ?????????????????????????????????????????????????? | | ?????????????????????????????????????????????????? | +----------------------------------------------------+ Best States ------------- Heat Dissipation 121 Coolant Potential 100 Energy Generation 55 Energy Capacity 1700 Matter Stores 300 Matter Capacity 300 Sight Range 22 Robot Scan Range 16 Terrain Scan Density 10 ECM Strength 1 Jamming Range 14 Cloak Strength 2 Power Amplification 20 Additional Mass Support 12 Armor Coverage 850 Resistance: KI 30 Resistance: TH 50 Core Shielding 30 Propulsion Shielding 66 Weapon Shielding 66 Phase Shifting 20 Evasion (%) 70 Targeting Accuracy 8 Melee Accuracy 8 Launcher Accuracy 40 Target Analysis 12 Core Analysis 6 Armor Integrity Analysis 50 Recoil Reduction 6 Particle Charging 15 Offensive Hacking 44 Defensive Hacking 20 Authchip Count 10 Item Schematics ----------------- Combat Drone Bay | -6/Data Miner | Free Lgt. Regenerative Plating | -6/Data Miner | Free Cld. Gravmag System | -6/Data Miner | Free Prc. Matter Filter | -6/Data Miner | Free Enh. Coil Gun | -6/Data Miner | Free Myomer Leg | -6/Data Miner | Free Imp. Force Booster | -6/Data Miner | Free Micro-nuke Launcher | -6/Data Miner | Free Biometal Leg | -6/Data Miner | Free Robot Schematics ------------------ B-48 Gladiator | -7/Factory | Downloaded S-27 Virus | -6/Factory | Hacked X-62 Marksman | -6/Factory | Downloaded I-36 Angel | -6/Data Miner | Free B-60 Warrior | -6/Data Miner | Free M-22 Extractor | -6/Data Miner | Free L-61 Swordsman | -6/Data Miner | Free G-67 Veteran | -6/Data Miner | Free Fabricated ------------ B-48 Gladiator | x3 | -7/Factory | Authchip B-48 Gladiator | x3 | -7/Factory | Authchip B-48 Gladiator | x3 | -7/Factory | Authchip B-48 Gladiator | x2 | -7/Factory | Authchip Adv. Target Analyzer | x2 | -6/Factory | Preloaded X-62 Marksman | x2 | -6/Factory | Authchip S-27 Virus | x4 | -1/Access | Authchip Repaired ---------- Nothing Alien Tech Used ----------------- None Achievements -------------- Great Explorer War Machine Challenges ------------ None Game ------ Seed DirectedSpreadStrikerail Manual? 0 Play Time 03:21:13 Cumulative 337.5 hours Start 2025.09.29 @ 21:56:17 End 2025.09.30 @ 05:08:47 Sessions 5 Manual Loads 0 Difficulty Rogue Special Mode None Game No. 447 Rogue 447 Adventurer 0 Explorer 0 Win Type - Total 11 Types 6/0/1/2/1/0/1/0/0/0 Lore% 87 Gallery% 82 Achievement% 69 Wizard Run 0 Options --------- Layout 0 ASCII 0 Keyboard 0 Movement Mouse Keybinds 0 Fullscreen 1 Font 18/X11 Map View 76x50 Zoom Use 0% Tactical HUD 1 Map Filters NONE Filters NONE Steam 1 RUN: 95cd6748-a366-44fd-abde-9a15ea895958